Workbook

Sheet Brugerinput og forudsætninger
B2: Brugerberegning | J2: Bossident | L2: 1234578 12345678 1234567812
B4: Totaløkonomiberegning | N4: RESULTAT:
C5: Investeringer i nutidskroner | N5: =IF((AND(N13="Beregningen er totaløkonomisk rentabel",N24="Brugerøkonomien er positiv")),"Kravet om totaløkonomisk såvel som brugerøkonomisk rentabilitet er opfyldt, og projektet opfylder dermed de krævede økonomiske kriterier.",IF((AND(N13="Beregningen er IKKE totaløkonomisk rentabel",N24="Brugerøkonomien er negativ")),"Kravet om totaløkonomisk rentabilitet såvel som en positiv brugerøkonomi er ikke opfyldt.",IF((AND(N13="Beregningen er totaløkonomisk rentabel",N24="Brugerøkonomien er negativ")),"Kravet om totaløkonomisk rentabilitet er opfyldt, men brugerøkonomien er negativ.",IF((AND(N13="Beregningen er IKKE totaløkonomisk rentabel",N24="Brugerøkonomien er positiv")),"Kravet om totaløkonomisk rentabilitet er ikke opfyldt, men brugerøkonomien er positiv.","-")))) -> -
E6: Initialinvesteringer ekskl. moms | K6: =-'Brugerinput og forudsætninger'!L64 -> 0 | L6: kr.
E7: Reinvesteringer ekskl. moms | K7: =Beregninger!H49 -> 0 | L7: kr.
E8: Ændring i årlige vedligeholdelsesomkostninger, tilslutningsafgifer m.v., ekskl. moms | K8: =Beregninger!I49+Beregninger!J49 -> 0 | L8: kr.
E9: Scrapværdi, ekskl. moms | K9: =J64 -> 0 | L9: kr.
C10: Varmebesparelser, ekskl. moms | K10: =Beregninger!O49 -> 0 | L10: kr.
C11: Elbesparelser, ekskl. moms | K11: =Beregninger!S49 -> 0 | L11: kr.
C13: Total, ekskl. moms | K13: =SUM(K6:K11) -> 0 | L13: kr. | N13: =IF(K13>0,"Beregningen er totaløkonomisk rentabel",IF(K13<0,"Beregningen er IKKE totaløkonomisk rentabel")) -> FALSE
B17: Brugerøkonomi
C18: Brugerøkonomi det første år
E19: Brugerbetaling, ekskl. moms | K19: =-Beregninger!W9 -> 0 | L19: kr.
E20: Varmebesparelser det første år, ekskl. moms | K20: =Beregninger!O9 -> 0 | L20: kr.
E21: Elbesparelser det første år, ekskl. moms | K21: =Beregninger!S9 -> 0 | L21: kr.
E22: Årlige andre besparelser - f.eks. tilslutningsafgifter m.v., ekskl. moms | K22: =-O64 -> 0 | L22: kr.
C24: Total, ekskl. moms | K24: =SUM(K19:K22) -> 0 | L24: kr. | N24: =IF(K24<0,"Brugerøkonomien er negativ",IF(K24>0,"Brugerøkonomien er positiv")) -> FALSE
B29: Investeringer og levetider - Forbedret bygning (ekskl. moms)
G30: Levetid | H30: Antal reinvesteringer | I30: Afskrivningsfaktor efter 40 år | J30: Scrapværdi efter 40 år. I nutidskroner | K30: Dokumentation | L30: Initialinvestering - Merpris eller totalpris | M30: Dokumentation | N30: Årlige vedligeholdelsesomkostninger samt service og tilsyn | O30: Årlige udgifter der ikke indeholder service, tilsyn eller vedligehold. | P30: Dokumentation
F31: Kort beskrivelse | G31: år | L31: Nutidskroner | N31: Nutidskroner | O31: Nutidskroner
B32: Tiltag 1
C33: Titel | F33: Intet tiltag
E34: Hovedkomponent 1 | G34: 0 | H34: =calcReinvestments(G34) -> 0 | I34: =IF(G34>0,((G34-(40-H34*G34))/G34),0) -> 0 | J34: =IF(H34=0,(L34*I34)/(1+Tilbagediskonteringsrente)^40,(((1+Produktivitetsindeks)^(G34*H34))*L34*I34)/(1+Tilbagediskonteringsrente)^40) -> 0 | K34: Afsnit X.X | L34: 0 | M34: Afsnit X.X | N34: 0 | O34: 0 | P34: Afsnit X.X
E35: Hovedkomponent 2 | G35: 0 | H35: =calcReinvestments(G35) -> 0 | I35: =IF(G35>0,((G35-(40-H35*G35))/G35),0) -> 0 | J35: =IF(H35=0,(L35*I35)/(1+Tilbagediskonteringsrente)^40,(((1+Produktivitetsindeks)^(G35*H35))*L35*I35)/(1+Tilbagediskonteringsrente)^40) -> 0 | K35: Afsnit X.X | L35: 0 | M35: Afsnit X.X | N35: 0 | O35: 0 | P35: Afsnit X.X
B36: Tiltag 2
C37: Titel | F37: Intet tiltag
E38: Hovedkomponent 1 | G38: 0 | H38: =calcReinvestments(G38) -> 0 | I38: =IF(G38>0,((G38-(40-H38*G38))/G38),0) -> 0 | J38: =IF(H38=0,(L38*I38)/(1+Tilbagediskonteringsrente)^40,(((1+Produktivitetsindeks)^(G38*H38))*L38*I38)/(1+Tilbagediskonteringsrente)^40) -> 0 | K38: Afsnit X.X | L38: 0 | M38: Afsnit X.X | N38: 0 | O38: 0 | P38: Afsnit X.X
E39: Hovedkomponent 2 | G39: 0 | H39: =calcReinvestments(G39) -> 0 | I39: =IF(G39>0,((G39-(40-H39*G39))/G39),0) -> 0 | J39: =IF(H39=0,(L39*I39)/(1+Tilbagediskonteringsrente)^40,(((1+Produktivitetsindeks)^(G39*H39))*L39*I39)/(1+Tilbagediskonteringsrente)^40) -> 0 | K39: Afsnit X.X | L39: 0 | M39: Afsnit X.X | N39: 0 | O39: 0 | P39: Afsnit X.X
B40: Tiltag 3
C41: Titel | F41: Intet tiltag
E42: Hovedkomponent 1 | G42: 0 | H42: =calcReinvestments(G42) -> 0 | I42: =IF(G42>0,((G42-(40-H42*G42))/G42),0) -> 0 | J42: =IF(H42=0,(L42*I42)/(1+Tilbagediskonteringsrente)^40,(((1+Produktivitetsindeks)^(G42*H42))*L42*I42)/(1+Tilbagediskonteringsrente)^40) -> 0 | K42: Afsnit X.X | L42: 0 | M42: Afsnit X.X | N42: 0 | O42: 0 | P42: Afsnit X.X
E43: Hovedkomponent 2 | G43: 0 | H43: =calcReinvestments(G43) -> 0 | I43: =IF(G43>0,((G43-(40-H43*G43))/G43),0) -> 0 | J43: =IF(H43=0,(L43*I43)/(1+Tilbagediskonteringsrente)^40,(((1+Produktivitetsindeks)^(G43*H43))*L43*I43)/(1+Tilbagediskonteringsrente)^40) -> 0 | K43: Afsnit X.X | L43: 0 | M43: Afsnit X.X | N43: 0 | O43: 0 | P43: Afsnit X.X
B44: Tiltag 4
C45: Titel | F45: Intet tiltag
E46: Hovedkomponent 1 | G46: 0 | H46: =calcReinvestments(G46) -> 0 | I46: =IF(G46>0,((G46-(40-H46*G46))/G46),0) -> 0 | J46: =IF(H46=0,(L46*I46)/(1+Tilbagediskonteringsrente)^40,(((1+Produktivitetsindeks)^(G46*H46))*L46*I46)/(1+Tilbagediskonteringsrente)^40) -> 0 | K46: Afsnit X.X | L46: 0 | M46: Afsnit X.X | N46: 0 | O46: 0 | P46: Afsnit X.X
E47: Hovedkomponent 2 | G47: 0 | H47: =calcReinvestments(G47) -> 0 | I47: =IF(G47>0,((G47-(40-H47*G47))/G47),0) -> 0 | J47: =IF(H47=0,(L47*I47)/(1+Tilbagediskonteringsrente)^40,(((1+Produktivitetsindeks)^(G47*H47))*L47*I47)/(1+Tilbagediskonteringsrente)^40) -> 0 | K47: Afsnit X.X | L47: 0 | M47: Afsnit X.X | N47: 0 | O47: 0 | P47: Afsnit X.X
B48: Tiltag 5
C49: Titel | F49: Intet tiltag
E50: Hovedkomponent 1 | G50: 0 | H50: =calcReinvestments(G50) -> 0 | I50: =IF(G50>0,((G50-(40-H50*G50))/G50),0) -> 0 | J50: =IF(H50=0,(L50*I50)/(1+Tilbagediskonteringsrente)^40,(((1+Produktivitetsindeks)^(G50*H50))*L50*I50)/(1+Tilbagediskonteringsrente)^40) -> 0 | K50: Afsnit X.X | L50: 0 | M50: Afsnit X.X | N50: 0 | O50: 0 | P50: Afsnit X.X
E51: Hovedkomponent 2 | G51: 0 | H51: =calcReinvestments(G51) -> 0 | I51: =IF(G51>0,((G51-(40-H51*G51))/G51),0) -> 0 | J51: =IF(H51=0,(L51*I51)/(1+Tilbagediskonteringsrente)^40,(((1+Produktivitetsindeks)^(G51*H51))*L51*I51)/(1+Tilbagediskonteringsrente)^40) -> 0 | K51: Afsnit X.X | L51: 0 | M51: Afsnit X.X | N51: 0 | O51: 0 | P51: Afsnit X.X
B52: Tiltag 6
C53: Titel | F53: Intet tiltag
E54: Hovedkomponent 1 | G54: 0 | H54: =calcReinvestments(G54) -> 0 | I54: =IF(G54>0,((G54-(40-H54*G54))/G54),0) -> 0 | J54: =IF(H54=0,(L54*I54)/(1+Tilbagediskonteringsrente)^40,(((1+Produktivitetsindeks)^(G54*H54))*L54*I54)/(1+Tilbagediskonteringsrente)^40) -> 0 | K54: Afsnit X.X | L54: 0 | M54: Afsnit X.X | N54: 0 | O54: 0 | P54: Afsnit X.X
E55: Hovedkomponent 2 | G55: 0 | H55: =calcReinvestments(G55) -> 0 | I55: =IF(G55>0,((G55-(40-H55*G55))/G55),0) -> 0 | J55: =IF(H55=0,(L55*I55)/(1+Tilbagediskonteringsrente)^40,(((1+Produktivitetsindeks)^(G55*H55))*L55*I55)/(1+Tilbagediskonteringsrente)^40) -> 0 | K55: Afsnit X.X | L55: 0 | M55: Afsnit X.X | N55: 0 | O55: 0 | P55: Afsnit X.X
B56: Tiltag 7
C57: Titel | F57: Intet tiltag
E58: Hovedkomponent 1 | G58: 0 | H58: =calcReinvestments(G58) -> 0 | I58: =IF(G58>0,((G58-(40-H58*G58))/G58),0) -> 0 | J58: =IF(H58=0,(L58*I58)/(1+Tilbagediskonteringsrente)^40,(((1+Produktivitetsindeks)^(G58*H58))*L58*I58)/(1+Tilbagediskonteringsrente)^40) -> 0 | K58: Afsnit X.X | L58: 0 | M58: Afsnit X.X | N58: 0 | O58: 0 | P58: Afsnit X.X
E59: Hovedkomponent 2 | G59: 0 | H59: =calcReinvestments(G59) -> 0 | I59: =IF(G59>0,((G59-(40-H59*G59))/G59),0) -> 0 | J59: =IF(H59=0,(L59*I59)/(1+Tilbagediskonteringsrente)^40,(((1+Produktivitetsindeks)^(G59*H59))*L59*I59)/(1+Tilbagediskonteringsrente)^40) -> 0 | K59: Afsnit X.X | L59: 0 | M59: Afsnit X.X | N59: 0 | O59: 0 | P59: Afsnit X.X
B60: Tiltag 8
C61: Titel | F61: Intet tiltag
E62: Hovedkomponent 1 | G62: 0 | H62: =calcReinvestments(G62) -> 0 | I62: =IF(G62>0,((G62-(40-H62*G62))/G62),0) -> 0 | J62: =IF(H62=0,(L62*I62)/(1+Tilbagediskonteringsrente)^40,(((1+Produktivitetsindeks)^(G62*H62))*L62*I62)/(1+Tilbagediskonteringsrente)^40) -> 0 | K62: Afsnit X.X | L62: 0 | M62: Afsnit X.X | N62: 0 | O62: 0 | P62: Afsnit X.X
E63: Hovedkomponent 2 | G63: 0 | H63: =calcReinvestments(G63) -> 0 | I63: =IF(G63>0,((G63-(40-H63*G63))/G63),0) -> 0 | J63: =IF(H63=0,(L63*I63)/(1+Tilbagediskonteringsrente)^40,(((1+Produktivitetsindeks)^(G63*H63))*L63*I63)/(1+Tilbagediskonteringsrente)^40) -> 0 | K63: Afsnit X.X | L63: 0 | M63: Afsnit X.X | N63: 0 | O63: 0 | P63: Afsnit X.X
G64: Totaler | J64: =SUM(J32:J63) -> 0 | L64: =SUM(L32:L63) -> 0 | N64: =SUM(N34:N63) -> 0 | O64: =SUM(O34:O63) -> 0
B66: Energibesparelser
F67: Varme | H67: El | I67: Dokumentation
F69: [kWh/m² pr. år] | G69: [KWh/år] | H69: [KWh/år]
E70: Standard | F70: 0 | G70: 0 | H70: 0 | I70: Afsnit X.X
E71: Lavenergi | F71: 0 | G71: 0 | H71: 0 | I71: Afsnit X.X
E72: Besparelse | F72: =F70-F71 -> 0 | G72: =G70-G71 -> 0 | H72: =H70-H71 -> 0
B74: Forudsætninger og mellemregninger | L74: Dokumentation
C75: Totaløkonomiberegning
E76: Faktisk initial merinvestering kr., ekskl. moms | K76: ='Brugerinput og forudsætninger'!L64*-1 -> 0 | L76: kr.
E77: Reinvesteringer i nutidskroner, ekskl. moms | K77: =Beregninger!H49 -> 0 | L77: kr.
E78: Scrapværdi, ekskl. moms | K78: =-J64 -> 0 | L78: kr.
C80: Beboerøkonomi
E81: Hovedstol i kr., ekskl. moms | K81: =K76*(1-K88) -> 0 | L81: kr.
C83: Renteforudsætninger
E84: Nominel tilbagediskonteringsrente | K84: 0.0375
E85: Inflation | K85: 0.018
E86: Nominel prisstigning på energibesparende tiltag | K86: 0.008
E87: Beboerbetalingsprocent | K87: 0.031
E88: Beboerindskud | K88: 0.02
E89: Bidrag på lån | K89: 0.0027
C91: Elpriser
E92: Elpris inkl. afgifter men ekskl. faste bidrag og moms | K92: 0 | L92: kr / kWh | M92: Afsnit X.X
C93: Varmeforsyning og priser (ekskl. moms)
D94: Før tiltag
E95: Varmekilde 1: | K95: Fjernvarme
E96: Varmepris | K96: 0 | L96: kr / kWh | M96: Afsnit X.X
D97: Efter tiltag
E98: Varmekilde 2: | K98: Fjernvarme
E99: Varmepris | K99: 0 | L99: kr / kWh | M99: Afsnit X.X

Sheet Beregninger (hidden)
B2: Stamdata | G2: Totaløkonomiberegning | U2: Beboerbetaling | AB2: TIL PLOT | AC2: TIL PLOT | AD2: TIL PLOT | AE2: TIL PLOT | AF2: TIL PLOT | AG2: TIL PLOT | AH2: TIL PLOT
B3: År og inflations- og produktivitetsindeks | G3: Reinvesteringer | K3: Varmebesparelser | Q3: Elbesparelser | AP3: For at 1. årsbetingelsen er overholdt - reduktionen i forsyningsudgifter for en normalforbruger på ibrugtagelsestidspunktet skal opveje betalingen vedr. merinvesteringen - skal denne mindst være lig 1. årsenergibesparelsen.
K4: Varmepris 1 før energiinvestering | M4: Varmepris 2 efter energiinvestering | O4: Besparelse | AB4: Varmebesparelser - Akkumulerede nutidskroner | AC4: Elbesparelser - Akkumulerede nutidskroner | AD4: Besparelser på årlige vedligeholdelsesomkostninger samt service og tilsyn - Akkumulerede nutidskroner | AE4: Besparelser på årlige udgifter der ikke indeholder service, tilsyn eller vedligehold - Akkumulerede nutidskroner | AF4: Scrapværdi af investeringer - Nutidskroner | AG4: Initialinvestering + reinvesteringer - Nutidskroner | AH4: Resultat | AP4: Fastsættelsen af beboerbetaling og bidrag vedr. merinvesteringen tager udgangspunkt i den faktiske initiale merinvestering (dvs. uden korrektioner, som foretages ved nutidsværdiberegningen).
B5: År | C5: År | D5: Inflationsindeks | E5: Produktivitetsindeks | G5: Reinvesteringer (initialpriser) | H5: Reinvesteringer korrigeret for produktivitetsindeks | I5: vedligeholdelsesomkostninger samt service og tilsyn | J5: Årlige udgifter der ikke indeholder service, tilsyn eller vedligehold. | K5: Prisindeks | L5: Pris | M5: Prisindeks | N5: Pris | Q5: Prisindeks | R5: Pris | S5: Besparelse | U5: Beb.bet | V5: Bidrag | W5: I alt | Y5: Besp.-beb.-dv | AB5: kr | AC5: kr | AD5: kr | AE5: kr | AG5: kr | AH5: kr
K6: =INDEX(EnergiIndeks,B9,$AS$8) -> Fjernvarme | L6: kr. / kWh | M6: =INDEX(EnergiIndeks,B9,$AS$9) -> Fjernvarme | N6: kr. / kWh | Q6: El | R6: kr. / kWh | AP6: NEDENSTÅENDE KUN TIL BEREGNINGER
AP7: Brændselsforudsætninger
B8: 0 | C8: 2011 | D8: =(1+Inflation)^(B8) -> 1 | E8: =(1+Produktivitetsindeks)^(B8) -> 1 | H8: =-G8*E8 -> 0 | I8: 0 | J8: 0 | K8: =INDEX(EnergiIndeks,B8+3,$AS$8) -> 100 | L8: =varmepris1 -> 0 | M8: =INDEX(EnergiIndeks,B8+3,$AS$9) -> 100 | N8: =varmepris2 -> 0 | O8: 0 | Q8: =Energipriser!G5 -> 100 | R8: =Elpris -> 0 | S8: 0 | U8: 0 | V8: 0 | W8: =U8+V8 -> 0 | AB8: =(NPV(Tilbagediskonteringsrente,$O$8:O8)) -> 0 | AC8: =(NPV(Tilbagediskonteringsrente,$S$8:S8)) -> 0 | AD8: =(NPV(Tilbagediskonteringsrente,$I$8:I8)) -> 0 | AE8: =(NPV(Tilbagediskonteringsrente,$J$8:J8)) -> 0 | AG8: =-('Brugerinput og forudsætninger'!L64)*(1+Tilbagediskonteringsrente)^-(B8) -> 0 | AH8: =AB8+AC8+AD8+AE8+SUM($AF$8:AF8)+SUM($AG$8:AG8) -> 0 | AQ8: Brændsel før | AR8: =Varmekilde1 -> Fjernvarme | AS8: =IF(AR8=AQ15,AR15,IF(AR8=AQ16,AR16,IF(AR8=AQ17,AR17,IF(AR8=AQ18,AR18,IF(AR8=AQ19,AR19))))) -> 1
B9: 1 | C9: =C8+1 -> 2012 | D9: =(1+Inflation)^(B9) -> 1.018 | E9: =(1+Produktivitetsindeks)^(B9) -> 1.008 | H9: =-G9*E9 -> 0 | I9: =-('Brugerinput og forudsætninger'!$N$64)*D9 -> 0 | J9: =-('Brugerinput og forudsætninger'!$O$64)*D9 -> 0 | K9: =INDEX(EnergiIndeks,B9+3,$AS$8)*D9 -> 101.9583204 | L9: =$L$8*K9/100 -> 0 | M9: =INDEX(EnergiIndeks,B9+3,$AS$9)*D9 -> 101.9583204 | N9: =$N$8*M9/100 -> 0 | O9: =L9*'Brugerinput og forudsætninger'!$G$70-'Brugerinput og forudsætninger'!$G$71*Beregninger!N9 -> 0 | Q9: =Energipriser!G5*D9 -> 101.8 | R9: =$R$8*Q9/100 -> 0 | S9: =R9*Elbesparelse -> 0 | U9: ='Brugerinput og forudsætninger'!K87*'Brugerinput og forudsætninger'!K76 -> 0 | V9: ='Brugerinput og forudsætninger'!K81*'Brugerinput og forudsætninger'!K89 -> 0 | W9: =U9+V9 -> 0 | Y9: =S9+O9-W9+I9+J9 -> 0 | AB9: =(NPV(Tilbagediskonteringsrente,$O$9:O9)) -> 0 | AC9: =(NPV(Tilbagediskonteringsrente,$S$9:S9)) -> 0 | AD9: =(NPV(Tilbagediskonteringsrente,$I$9:I9)) -> 0 | AE9: =(NPV(Tilbagediskonteringsrente,$J$9:J9)) -> 0 | AG9: =H9*(1+Tilbagediskonteringsrente)^-(B9) -> 0 | AH9: =AB9+AC9+AD9+AE9+SUM($AF$8:AF9)+SUM($AG$8:AG9) -> 0 | AQ9: Brændesl efter | AR9: =Varmekilde2 -> Fjernvarme | AS9: =IF(AR9=AQ15,AR15,IF(AR9=AQ16,AR16,IF(AR9=AQ17,AR17,IF(AR9=AQ18,AR18,IF(AR9=AQ19,AR19))))) -> 1
B10: 2 | C10: 2013 | D10: 1.036324 | E10: 1.016064 | H10: 0 | I10: =-('Brugerinput og forudsætninger'!$N$64)*D10 -> 0 | J10: =-('Brugerinput og forudsætninger'!$O$64)*D10 -> 0 | K10: 105.7276118 | L10: =$L$8*K10/100 -> 0 | M10: 105.7276118 | N10: =$N$8*M10/100 -> 0 | O10: =L10*'Brugerinput og forudsætninger'!$G$70-'Brugerinput og forudsætninger'!$G$71*Beregninger!N10 -> 0 | Q10: =Energipriser!G5*D10 -> 103.6324 | R10: 0 | S10: =R10*Elbesparelse -> 0 | U10: =U9*(1+'Brugerinput og forudsætninger'!$K$85) -> 0 | V10: =V9 -> 0 | W10: =U10+V10 -> 0 | Y10: 0 | AB10: =(NPV(Tilbagediskonteringsrente,$O$9:O10)) -> 0 | AC10: =(NPV(Tilbagediskonteringsrente,$S$9:S10)) -> 0 | AD10: =(NPV(Tilbagediskonteringsrente,$I$9:I10)) -> 0 | AE10: =(NPV(Tilbagediskonteringsrente,$J$9:J10)) -> 0 | AG10: 0 | AH10: =AB10+AC10+AD10+AE10+SUM($AF$8:AF10)+SUM($AG$8:AG10) -> 0 | AQ10: Varmepris, før | AR10: =varmepris1 -> 0
B11: 3 | C11: 2014 | D11: 1.054977832 | E11: 1.024192512 | H11: 0 | I11: =-('Brugerinput og forudsætninger'!$N$64)*D11 -> 0 | J11: =-('Brugerinput og forudsætninger'!$O$64)*D11 -> 0 | K11: 107.79478 | L11: 0 | M11: 107.79478 | N11: 0 | O11: =L11*'Brugerinput og forudsætninger'!$G$70-'Brugerinput og forudsætninger'!$G$71*Beregninger!N11 -> 0 | Q11: =Energipriser!G6*D11 -> 108.7799365 | R11: 0 | S11: 0 | U11: =U10*(1+'Brugerinput og forudsætninger'!$K$85) -> 0 | V11: =V10 -> 0 | W11: =U11+V11 -> 0 | Y11: 0 | AB11: =(NPV(Tilbagediskonteringsrente,$O$9:O11)) -> 0 | AC11: =(NPV(Tilbagediskonteringsrente,$S$9:S11)) -> 0 | AD11: =(NPV(Tilbagediskonteringsrente,$I$9:I11)) -> 0 | AE11: =(NPV(Tilbagediskonteringsrente,$J$9:J11)) -> 0 | AG11: 0 | AH11: =AB11+AC11+AD11+AE11+SUM($AF$8:AF11)+SUM($AG$8:AG11) -> 0 | AQ11: Varmepris, efter | AR11: =varmepris2 -> 0
B12: 4 | C12: 2015 | D12: 1.073967433 | E12: 1.032386052 | H12: 0 | I12: =-('Brugerinput og forudsætninger'!$N$64)*D12 -> 0 | J12: =-('Brugerinput og forudsætninger'!$O$64)*D12 -> 0 | K12: 110.069135 | L12: 0 | M12: 110.069135 | N12: 0 | O12: =L12*'Brugerinput og forudsætninger'!$G$70-'Brugerinput og forudsætninger'!$G$71*Beregninger!N12 -> 0 | Q12: =Energipriser!G7*D12 -> 109.1469124 | R12: 0 | S12: =R12*Elbesparelse -> 0 | U12: =U11*(1+'Brugerinput og forudsætninger'!$K$85) -> 0 | V12: =V11 -> 0 | W12: =U12+V12 -> 0 | Y12: 0 | AB12: =(NPV(Tilbagediskonteringsrente,$O$9:O12)) -> 0 | AC12: =(NPV(Tilbagediskonteringsrente,$S$9:S12)) -> 0 | AD12: =(NPV(Tilbagediskonteringsrente,$I$9:I12)) -> 0 | AE12: =(NPV(Tilbagediskonteringsrente,$J$9:J12)) -> 0 | AG12: 0 | AH12: =AB12+AC12+AD12+AE12+SUM($AF$8:AF12)+SUM($AG$8:AG12) -> 0
B13: 5 | C13: 2016 | D13: 1.093298847 | E13: 1.040645141 | H13: 0 | I13: =-('Brugerinput og forudsætninger'!$N$64)*D13 -> 0 | J13: =-('Brugerinput og forudsætninger'!$O$64)*D13 -> 0 | K13: 115.450998 | L13: 0 | M13: 115.450998 | N13: 0 | O13: =L13*'Brugerinput og forudsætninger'!$G$70-'Brugerinput og forudsætninger'!$G$71*Beregninger!N13 -> 0 | Q13: =Energipriser!G8*D13 -> 111.1115569 | R13: 0 | S13: 0 | U13: =U12*(1+'Brugerinput og forudsætninger'!$K$85) -> 0 | V13: 0 | W13: =U13+V13 -> 0 | Y13: 0 | AB13: =(NPV(Tilbagediskonteringsrente,$O$9:O13)) -> 0 | AC13: =(NPV(Tilbagediskonteringsrente,$S$9:S13)) -> 0 | AD13: =(NPV(Tilbagediskonteringsrente,$I$9:I13)) -> 0 | AE13: =(NPV(Tilbagediskonteringsrente,$J$9:J13)) -> 0 | AG13: 0 | AH13: =AB13+AC13+AD13+AE13+SUM($AF$8:AF13)+SUM($AG$8:AG13) -> 0
B14: 6 | C14: 2017 | D14: 1.112978226 | E14: 1.048970302 | H14: 0 | I14: =-('Brugerinput og forudsætninger'!$N$64)*D14 -> 0 | J14: =-('Brugerinput og forudsætninger'!$O$64)*D14 -> 0 | K14: 116.3174756 | L14: 0 | M14: 116.3174756 | N14: 0 | O14: =L14*'Brugerinput og forudsætninger'!$G$70-'Brugerinput og forudsætninger'!$G$71*Beregninger!N14 -> 0 | Q14: =Energipriser!G9*D14 -> 116.5741638 | R14: 0 | S14: 0 | U14: =U13*(1+'Brugerinput og forudsætninger'!$K$85) -> 0 | V14: 0 | W14: 0 | Y14: 0 | AB14: =(NPV(Tilbagediskonteringsrente,$O$9:O14)) -> 0 | AC14: =(NPV(Tilbagediskonteringsrente,$S$9:S14)) -> 0 | AD14: =(NPV(Tilbagediskonteringsrente,$I$9:I14)) -> 0 | AE14: =(NPV(Tilbagediskonteringsrente,$J$9:J14)) -> 0 | AG14: 0 | AH14: =AB14+AC14+AD14+AE14+SUM($AF$8:AF14)+SUM($AG$8:AG14) -> 0 | AP14: Offset (kun til beregninger)
B15: 7 | C15: 2018 | D15: 1.133011834 | E15: 1.057362064 | H15: 0 | I15: =-('Brugerinput og forudsætninger'!$N$64)*D15 -> 0 | J15: =-('Brugerinput og forudsætninger'!$O$64)*D15 -> 0 | K15: 117.8825687 | L15: 0 | M15: 117.8825687 | N15: 0 | O15: =L15*'Brugerinput og forudsætninger'!$G$70-'Brugerinput og forudsætninger'!$G$71*Beregninger!N15 -> 0 | Q15: =Energipriser!G10*D15 -> 120.5188884 | R15: 0 | S15: 0 | U15: =U14*(1+'Brugerinput og forudsætninger'!$K$85) -> 0 | V15: 0 | W15: 0 | Y15: 0 | AB15: =(NPV(Tilbagediskonteringsrente,$O$9:O15)) -> 0 | AC15: =(NPV(Tilbagediskonteringsrente,$S$9:S15)) -> 0 | AD15: =(NPV(Tilbagediskonteringsrente,$I$9:I15)) -> 0 | AE15: =(NPV(Tilbagediskonteringsrente,$J$9:J15)) -> 0 | AG15: 0 | AH15: =AB15+AC15+AD15+AE15+SUM($AF$8:AF15)+SUM($AG$8:AG15) -> 0 | AQ15: Fjernvarme | AR15: 1
B16: 8 | C16: 2019 | D16: 1.153406047 | E16: 1.065820961 | H16: 0 | I16: =-('Brugerinput og forudsætninger'!$N$64)*D16 -> 0 | J16: =-('Brugerinput og forudsætninger'!$O$64)*D16 -> 0 | K16: 121.4394858 | L16: 0 | M16: 121.4394858 | N16: 0 | O16: =L16*'Brugerinput og forudsætninger'!$G$70-'Brugerinput og forudsætninger'!$G$71*Beregninger!N16 -> 0 | Q16: =Energipriser!G11*D16 -> 124.3969781 | R16: 0 | S16: 0 | U16: =U15*(1+'Brugerinput og forudsætninger'!$K$85) -> 0 | V16: 0 | W16: =U16+V16 -> 0 | Y16: 0 | AB16: =(NPV(Tilbagediskonteringsrente,$O$9:O16)) -> 0 | AC16: =(NPV(Tilbagediskonteringsrente,$S$9:S16)) -> 0 | AD16: =(NPV(Tilbagediskonteringsrente,$I$9:I16)) -> 0 | AE16: =(NPV(Tilbagediskonteringsrente,$J$9:J16)) -> 0 | AG16: 0 | AH16: =AB16+AC16+AD16+AE16+SUM($AF$8:AF16)+SUM($AG$8:AG16) -> 0 | AQ16: El | AR16: 5
B17: 9 | C17: 2020 | D17: 1.174167356 | E17: 1.074347528 | H17: 0 | I17: =-('Brugerinput og forudsætninger'!$N$64)*D17 -> 0 | J17: =-('Brugerinput og forudsætninger'!$O$64)*D17 -> 0 | K17: 123.6253966 | L17: 0 | M17: 123.6253966 | N17: 0 | O17: =L17*'Brugerinput og forudsætninger'!$G$70-'Brugerinput og forudsætninger'!$G$71*Beregninger!N17 -> 0 | Q17: =Energipriser!G12*D17 -> 124.8966165 | R17: 0 | S17: 0 | U17: =U16*(1+'Brugerinput og forudsætninger'!$K$85) -> 0 | V17: 0 | W17: 0 | Y17: 0 | AB17: =(NPV(Tilbagediskonteringsrente,$O$9:O17)) -> 0 | AC17: =(NPV(Tilbagediskonteringsrente,$S$9:S17)) -> 0 | AD17: =(NPV(Tilbagediskonteringsrente,$I$9:I17)) -> 0 | AE17: =(NPV(Tilbagediskonteringsrente,$J$9:J17)) -> 0 | AG17: 0 | AH17: =AB17+AC17+AD17+AE17+SUM($AF$8:AF17)+SUM($AG$8:AG17) -> 0 | AQ17: Naturgas | AR17: 9
B18: 10 | C18: 2021 | D18: 1.195302368 | E18: 1.082942308 | H18: 0 | I18: =-('Brugerinput og forudsætninger'!$N$64)*D18 -> 0 | J18: =-('Brugerinput og forudsætninger'!$O$64)*D18 -> 0 | K18: 126.4083376 | L18: 0 | M18: 126.4083376 | N18: 0 | O18: =L18*'Brugerinput og forudsætninger'!$G$70-'Brugerinput og forudsætninger'!$G$71*Beregninger!N18 -> 0 | Q18: =Energipriser!G13*D18 -> 127.1447556 | R18: 0 | S18: =R18*Elbesparelse -> 0 | U18: =U17*(1+'Brugerinput og forudsætninger'!$K$85) -> 0 | V18: 0 | W18: =U18+V18 -> 0 | Y18: 0 | AB18: =(NPV(Tilbagediskonteringsrente,$O$9:O18)) -> 0 | AC18: =(NPV(Tilbagediskonteringsrente,$S$9:S18)) -> 0 | AD18: =(NPV(Tilbagediskonteringsrente,$I$9:I18)) -> 0 | AE18: =(NPV(Tilbagediskonteringsrente,$J$9:J18)) -> 0 | AG18: 0 | AH18: =AB18+AC18+AD18+AE18+SUM($AF$8:AF18)+SUM($AG$8:AG18) -> 0 | AQ18: Gasolie | AR18: 13
B19: 11 | C19: 2022 | D19: 1.216817811 | E19: 1.091605847 | H19: 0 | I19: =-('Brugerinput og forudsætninger'!$N$64)*D19 -> 0 | J19: =-('Brugerinput og forudsætninger'!$O$64)*D19 -> 0 | K19: 129.4406505 | L19: 0 | M19: 129.4406505 | N19: 0 | O19: =L19*'Brugerinput og forudsætninger'!$G$70-'Brugerinput og forudsætninger'!$G$71*Beregninger!N19 -> 0 | Q19: =Energipriser!G14*D19 -> 129.4333612 | R19: 0 | S19: 0 | U19: =U18*(1+'Brugerinput og forudsætninger'!$K$85) -> 0 | V19: 0 | W19: 0 | Y19: 0 | AB19: =(NPV(Tilbagediskonteringsrente,$O$9:O19)) -> 0 | AC19: =(NPV(Tilbagediskonteringsrente,$S$9:S19)) -> 0 | AD19: =(NPV(Tilbagediskonteringsrente,$I$9:I19)) -> 0 | AE19: =(NPV(Tilbagediskonteringsrente,$J$9:J19)) -> 0 | AG19: 0 | AH19: =AB19+AC19+AD19+AE19+SUM($AF$8:AF19)+SUM($AG$8:AG19) -> 0 | AQ19: Træpiller | AR19: 17
B20: 12 | C20: 2023 | D20: 1.238720532 | E20: 1.100338694 | H20: =-G20*E20 -> 0 | I20: =-('Brugerinput og forudsætninger'!$N$64)*D20 -> 0 | J20: =-('Brugerinput og forudsætninger'!$O$64)*D20 -> 0 | K20: 132.199973 | L20: 0 | M20: 132.199973 | N20: 0 | O20: =L20*'Brugerinput og forudsætninger'!$G$70-'Brugerinput og forudsætninger'!$G$71*Beregninger!N20 -> 0 | Q20: =Energipriser!G15*D20 -> 129.744506 | R20: 0 | S20: 0 | U20: =U19*(1+'Brugerinput og forudsætninger'!$K$85) -> 0 | V20: 0 | W20: 0 | Y20: 0 | AB20: =(NPV(Tilbagediskonteringsrente,$O$9:O20)) -> 0 | AC20: =(NPV(Tilbagediskonteringsrente,$S$9:S20)) -> 0 | AD20: =(NPV(Tilbagediskonteringsrente,$I$9:I20)) -> 0 | AE20: =(NPV(Tilbagediskonteringsrente,$J$9:J20)) -> 0 | AG20: 0 | AH20: =AB20+AC20+AD20+AE20+SUM($AF$8:AF20)+SUM($AG$8:AG20) -> 0
B21: 13 | C21: 2024 | D21: 1.261017501 | E21: 1.109141403 | H21: 0 | I21: =-('Brugerinput og forudsætninger'!$N$64)*D21 -> 0 | J21: =-('Brugerinput og forudsætninger'!$O$64)*D21 -> 0 | K21: 135.0181167 | L21: 0 | M21: 135.0181167 | N21: 0 | O21: =L21*'Brugerinput og forudsætninger'!$G$70-'Brugerinput og forudsætninger'!$G$71*Beregninger!N21 -> 0 | Q21: =Energipriser!G16*D21 -> 132.0799072 | R21: 0 | S21: 0 | U21: =U20*(1+'Brugerinput og forudsætninger'!$K$85) -> 0 | V21: 0 | W21: 0 | Y21: 0 | AB21: =(NPV(Tilbagediskonteringsrente,$O$9:O21)) -> 0 | AC21: =(NPV(Tilbagediskonteringsrente,$S$9:S21)) -> 0 | AD21: =(NPV(Tilbagediskonteringsrente,$I$9:I21)) -> 0 | AE21: =(NPV(Tilbagediskonteringsrente,$J$9:J21)) -> 0 | AG21: 0 | AH21: =AB21+AC21+AD21+AE21+SUM($AF$8:AF21)+SUM($AG$8:AG21) -> 0
B22: 14 | C22: 2025 | D22: 1.283715816 | E22: 1.118014534 | H22: 0 | I22: =-('Brugerinput og forudsætninger'!$N$64)*D22 -> 0 | J22: =-('Brugerinput og forudsætninger'!$O$64)*D22 -> 0 | K22: 137.8963355 | L22: 0 | M22: 137.8963355 | N22: 0 | O22: =L22*'Brugerinput og forudsætninger'!$G$70-'Brugerinput og forudsætninger'!$G$71*Beregninger!N22 -> 0 | Q22: =Energipriser!G16*D22 -> 134.4573455 | R22: 0 | S22: 0 | U22: =U21*(1+'Brugerinput og forudsætninger'!$K$85) -> 0 | V22: 0 | W22: 0 | Y22: 0 | AB22: =(NPV(Tilbagediskonteringsrente,$O$9:O22)) -> 0 | AC22: =(NPV(Tilbagediskonteringsrente,$S$9:S22)) -> 0 | AD22: =(NPV(Tilbagediskonteringsrente,$I$9:I22)) -> 0 | AE22: =(NPV(Tilbagediskonteringsrente,$J$9:J22)) -> 0 | AG22: 0 | AH22: =AB22+AC22+AD22+AE22+SUM($AF$8:AF22)+SUM($AG$8:AG22) -> 0
B23: 15 | C23: 2026 | D23: 1.306822701 | E23: 1.126958651 | H23: 0 | I23: =-('Brugerinput og forudsætninger'!$N$64)*D23 -> 0 | J23: =-('Brugerinput og forudsætninger'!$O$64)*D23 -> 0 | K23: 140.8359102 | L23: 0 | M23: 140.8359102 | N23: 0 | O23: =L23*'Brugerinput og forudsætninger'!$G$70-'Brugerinput og forudsætninger'!$G$71*Beregninger!N23 -> 0 | Q23: =Energipriser!G17*D23 -> 136.8775777 | R23: 0 | S23: 0 | U23: =U22*(1+'Brugerinput og forudsætninger'!$K$85) -> 0 | V23: 0 | W23: 0 | Y23: 0 | AB23: =(NPV(Tilbagediskonteringsrente,$O$9:O23)) -> 0 | AC23: =(NPV(Tilbagediskonteringsrente,$S$9:S23)) -> 0 | AD23: =(NPV(Tilbagediskonteringsrente,$I$9:I23)) -> 0 | AE23: =(NPV(Tilbagediskonteringsrente,$J$9:J23)) -> 0 | AG23: 0 | AH23: =AB23+AC23+AD23+AE23+SUM($AF$8:AF23)+SUM($AG$8:AG23) -> 0
B24: 16 | C24: 2027 | D24: 1.330345509 | E24: 1.13597432 | H24: 0 | I24: =-('Brugerinput og forudsætninger'!$N$64)*D24 -> 0 | J24: =-('Brugerinput og forudsætninger'!$O$64)*D24 -> 0 | K24: 143.8381486 | L24: 0 | M24: 143.8381486 | N24: 0 | O24: =L24*'Brugerinput og forudsætninger'!$G$70-'Brugerinput og forudsætninger'!$G$71*Beregninger!N24 -> 0 | Q24: =Energipriser!G18*D24 -> 139.3413741 | R24: 0 | S24: 0 | U24: =U23*(1+'Brugerinput og forudsætninger'!$K$85) -> 0 | V24: 0 | W24: 0 | Y24: 0 | AB24: =(NPV(Tilbagediskonteringsrente,$O$9:O24)) -> 0 | AC24: =(NPV(Tilbagediskonteringsrente,$S$9:S24)) -> 0 | AD24: =(NPV(Tilbagediskonteringsrente,$I$9:I24)) -> 0 | AE24: =(NPV(Tilbagediskonteringsrente,$J$9:J24)) -> 0 | AG24: 0 | AH24: =AB24+AC24+AD24+AE24+SUM($AF$8:AF24)+SUM($AG$8:AG24) -> 0
B25: 17 | C25: 2028 | D25: 1.354291729 | E25: 1.145062115 | H25: 0 | I25: =-('Brugerinput og forudsætninger'!$N$64)*D25 -> 0 | J25: =-('Brugerinput og forudsætninger'!$O$64)*D25 -> 0 | K25: 146.9043865 | L25: 0 | M25: 146.9043865 | N25: 0 | O25: =L25*'Brugerinput og forudsætninger'!$G$70-'Brugerinput og forudsætninger'!$G$71*Beregninger!N25 -> 0 | Q25: =Energipriser!G19*D25 -> 139.8431607 | R25: 0 | S25: 0 | U25: =U24*(1+'Brugerinput og forudsætninger'!$K$85) -> 0 | V25: 0 | W25: 0 | Y25: 0 | AB25: =(NPV(Tilbagediskonteringsrente,$O$9:O25)) -> 0 | AC25: =(NPV(Tilbagediskonteringsrente,$S$9:S25)) -> 0 | AD25: =(NPV(Tilbagediskonteringsrente,$I$9:I25)) -> 0 | AE25: =(NPV(Tilbagediskonteringsrente,$J$9:J25)) -> 0 | AG25: 0 | AH25: =AB25+AC25+AD25+AE25+SUM($AF$8:AF25)+SUM($AG$8:AG25) -> 0
B26: 18 | C26: 2029 | D26: 1.37866898 | E26: 1.154222611 | H26: 0 | I26: =-('Brugerinput og forudsætninger'!$N$64)*D26 -> 0 | J26: =-('Brugerinput og forudsætninger'!$O$64)*D26 -> 0 | K26: 150.0359883 | L26: 0 | M26: 150.0359883 | N26: 0 | O26: =L26*'Brugerinput og forudsætninger'!$G$70-'Brugerinput og forudsætninger'!$G$71*Beregninger!N26 -> 0 | Q26: =Energipriser!G20*D26 -> 144.4028102 | R26: 0 | S26: 0 | U26: =U25*(1+'Brugerinput og forudsætninger'!$K$85) -> 0 | V26: 0 | W26: 0 | Y26: 0 | AB26: =(NPV(Tilbagediskonteringsrente,$O$9:O26)) -> 0 | AC26: =(NPV(Tilbagediskonteringsrente,$S$9:S26)) -> 0 | AD26: =(NPV(Tilbagediskonteringsrente,$I$9:I26)) -> 0 | AE26: =(NPV(Tilbagediskonteringsrente,$J$9:J26)) -> 0 | AG26: 0 | AH26: =AB26+AC26+AD26+AE26+SUM($AF$8:AF26)+SUM($AG$8:AG26) -> 0
B27: 19 | C27: 2030 | D27: 1.403485021 | E27: 1.163456392 | H27: 0 | I27: =-('Brugerinput og forudsætninger'!$N$64)*D27 -> 0 | J27: =-('Brugerinput og forudsætninger'!$O$64)*D27 -> 0 | K27: 153.2343473 | L27: 0 | M27: 153.2343473 | N27: 0 | O27: =L27*'Brugerinput og forudsætninger'!$G$70-'Brugerinput og forudsætninger'!$G$71*Beregninger!N27 -> 0 | Q27: =Energipriser!G21*D27 -> 147.0020608 | R27: 0 | S27: 0 | U27: =U26*(1+'Brugerinput og forudsætninger'!$K$85) -> 0 | V27: 0 | W27: 0 | Y27: 0 | AB27: =(NPV(Tilbagediskonteringsrente,$O$9:O27)) -> 0 | AC27: =(NPV(Tilbagediskonteringsrente,$S$9:S27)) -> 0 | AD27: =(NPV(Tilbagediskonteringsrente,$I$9:I27)) -> 0 | AE27: =(NPV(Tilbagediskonteringsrente,$J$9:J27)) -> 0 | AG27: =H27*(1+Tilbagediskonteringsrente)^-(B27) -> 0 | AH27: =AB27+AC27+AD27+AE27+SUM($AF$8:AF27)+SUM($AG$8:AG27) -> 0
B28: 20 | C28: 2031 | D28: 1.428747752 | E28: 1.172764043 | H28: =-G28*E28 -> 0 | I28: =-('Brugerinput og forudsætninger'!$N$64)*D28 -> 0 | J28: =-('Brugerinput og forudsætninger'!$O$64)*D28 -> 0 | K28: 156.5008867 | L28: 0 | M28: 156.5008867 | N28: 0 | O28: =L28*'Brugerinput og forudsætninger'!$G$70-'Brugerinput og forudsætninger'!$G$71*Beregninger!N28 -> 0 | Q28: =Energipriser!G22*D28 -> 149.6480979 | R28: 0 | S28: 0 | U28: =U27*(1+'Brugerinput og forudsætninger'!$K$85) -> 0 | V28: 0 | W28: 0 | Y28: 0 | AB28: =(NPV(Tilbagediskonteringsrente,$O$9:O28)) -> 0 | AC28: =(NPV(Tilbagediskonteringsrente,$S$9:S28)) -> 0 | AD28: =(NPV(Tilbagediskonteringsrente,$I$9:I28)) -> 0 | AE28: =(NPV(Tilbagediskonteringsrente,$J$9:J28)) -> 0 | AG28: 0 | AH28: =AB28+AC28+AD28+AE28+SUM($AF$8:AF28)+SUM($AG$8:AG28) -> 0
B29: 21 | C29: 2032 | D29: 1.454465211 | E29: 1.182146156 | H29: =-G29*E29 -> 0 | I29: =-('Brugerinput og forudsætninger'!$N$64)*D29 -> 0 | J29: =-('Brugerinput og forudsætninger'!$O$64)*D29 -> 0 | K29: 159.8370597 | L29: 0 | M29: 159.8370597 | N29: 0 | O29: =L29*'Brugerinput og forudsætninger'!$G$70-'Brugerinput og forudsætninger'!$G$71*Beregninger!N29 -> 0 | Q29: =Energipriser!G23*D29 -> 152.3417636 | R29: 0 | S29: 0 | U29: =U28*(1+(0.75*'Brugerinput og forudsætninger'!$K$85)) -> 0 | V29: 0 | W29: 0 | Y29: 0 | AB29: =(NPV(Tilbagediskonteringsrente,$O$9:O29)) -> 0 | AC29: =(NPV(Tilbagediskonteringsrente,$S$9:S29)) -> 0 | AD29: =(NPV(Tilbagediskonteringsrente,$I$9:I29)) -> 0 | AE29: =(NPV(Tilbagediskonteringsrente,$J$9:J29)) -> 0 | AG29: 0 | AH29: =AB29+AC29+AD29+AE29+SUM($AF$8:AF29)+SUM($AG$8:AG29) -> 0
B30: 22 | C30: 2033 | D30: 1.480645585 | E30: 1.191603325 | H30: 0 | I30: =-('Brugerinput og forudsætninger'!$N$64)*D30 -> 0 | J30: =-('Brugerinput og forudsætninger'!$O$64)*D30 -> 0 | K30: 163.2443509 | L30: 0 | M30: 163.2443509 | N30: 0 | O30: =L30*'Brugerinput og forudsætninger'!$G$70-'Brugerinput og forudsætninger'!$G$71*Beregninger!N30 -> 0 | Q30: =Energipriser!G24*D30 -> 155.0839154 | R30: 0 | S30: 0 | U30: =U29*(1+(0.75*'Brugerinput og forudsætninger'!$K$85)) -> 0 | V30: 0 | W30: 0 | Y30: 0 | AB30: =(NPV(Tilbagediskonteringsrente,$O$9:O30)) -> 0 | AC30: =(NPV(Tilbagediskonteringsrente,$S$9:S30)) -> 0 | AD30: =(NPV(Tilbagediskonteringsrente,$I$9:I30)) -> 0 | AE30: =(NPV(Tilbagediskonteringsrente,$J$9:J30)) -> 0 | AG30: 0 | AH30: =AB30+AC30+AD30+AE30+SUM($AF$8:AF30)+SUM($AG$8:AG30) -> 0
B31: 23 | C31: 2034 | D31: 1.507297206 | E31: 1.201136152 | H31: 0 | I31: =-('Brugerinput og forudsætninger'!$N$64)*D31 -> 0 | J31: =-('Brugerinput og forudsætninger'!$O$64)*D31 -> 0 | K31: 166.7242763 | L31: 0 | M31: 166.7242763 | N31: 0 | O31: =L31*'Brugerinput og forudsætninger'!$G$70-'Brugerinput og forudsætninger'!$G$71*Beregninger!N31 -> 0 | Q31: =Energipriser!G25*D31 -> 157.8754258 | R31: 0 | S31: 0 | U31: =U30*(1+(0.75*'Brugerinput og forudsætninger'!$K$85)) -> 0 | V31: 0 | W31: 0 | Y31: 0 | AB31: =(NPV(Tilbagediskonteringsrente,$O$9:O31)) -> 0 | AC31: =(NPV(Tilbagediskonteringsrente,$S$9:S31)) -> 0 | AD31: =(NPV(Tilbagediskonteringsrente,$I$9:I31)) -> 0 | AE31: =(NPV(Tilbagediskonteringsrente,$J$9:J31)) -> 0 | AG31: 0 | AH31: =AB31+AC31+AD31+AE31+SUM($AF$8:AF31)+SUM($AG$8:AG31) -> 0
B32: 24 | C32: 2035 | D32: 1.534428555 | E32: 1.210745241 | H32: 0 | I32: =-('Brugerinput og forudsætninger'!$N$64)*D32 -> 0 | J32: =-('Brugerinput og forudsætninger'!$O$64)*D32 -> 0 | K32: 170.2783842 | L32: 0 | M32: 170.2783842 | N32: 0 | O32: =L32*'Brugerinput og forudsætninger'!$G$70-'Brugerinput og forudsætninger'!$G$71*Beregninger!N32 -> 0 | Q32: =Energipriser!G26*D32 -> 160.7171835 | R32: 0 | S32: 0 | U32: =U31*(1+(0.75*'Brugerinput og forudsætninger'!$K$85)) -> 0 | V32: 0 | W32: 0 | Y32: 0 | AB32: =(NPV(Tilbagediskonteringsrente,$O$9:O32)) -> 0 | AC32: =(NPV(Tilbagediskonteringsrente,$S$9:S32)) -> 0 | AD32: =(NPV(Tilbagediskonteringsrente,$I$9:I32)) -> 0 | AE32: =(NPV(Tilbagediskonteringsrente,$J$9:J32)) -> 0 | AG32: 0 | AH32: =AB32+AC32+AD32+AE32+SUM($AF$8:AF32)+SUM($AG$8:AG32) -> 0
B33: 25 | C33: 2036 | D33: 1.562048269 | E33: 1.220431203 | H33: =-G33*E33 -> 0 | I33: =-('Brugerinput og forudsætninger'!$N$64)*D33 -> 0 | J33: =-('Brugerinput og forudsætninger'!$O$64)*D33 -> 0 | K33: 173.9082561 | L33: 0 | M33: 173.9082561 | N33: 0 | O33: =L33*'Brugerinput og forudsætninger'!$G$70-'Brugerinput og forudsætninger'!$G$71*Beregninger!N33 -> 0 | Q33: =Energipriser!G27*D33 -> 164.0094261 | R33: 0 | S33: 0 | U33: =U32*(1+(0.75*'Brugerinput og forudsætninger'!$K$85)) -> 0 | V33: 0 | W33: 0 | Y33: 0 | AB33: =(NPV(Tilbagediskonteringsrente,$O$9:O33)) -> 0 | AC33: =(NPV(Tilbagediskonteringsrente,$S$9:S33)) -> 0 | AD33: =(NPV(Tilbagediskonteringsrente,$I$9:I33)) -> 0 | AE33: =(NPV(Tilbagediskonteringsrente,$J$9:J33)) -> 0 | AG33: 0 | AH33: =AB33+AC33+AD33+AE33+SUM($AF$8:AF33)+SUM($AG$8:AG33) -> 0
B34: 26 | C34: 2037 | D34: 1.590165138 | E34: 1.230194652 | H34: 0 | I34: =-('Brugerinput og forudsætninger'!$N$64)*D34 -> 0 | J34: =-('Brugerinput og forudsætninger'!$O$64)*D34 -> 0 | K34: 177.6155069 | L34: 0 | M34: 177.6155069 | N34: 0 | O34: =L34*'Brugerinput og forudsætninger'!$G$70-'Brugerinput og forudsætninger'!$G$71*Beregninger!N34 -> 0 | Q34: =Energipriser!G28*D34 -> 167.3691093 | R34: 0 | S34: 0 | U34: =U33*(1+(0.75*'Brugerinput og forudsætninger'!$K$85)) -> 0 | V34: 0 | W34: 0 | Y34: 0 | AB34: =(NPV(Tilbagediskonteringsrente,$O$9:O34)) -> 0 | AC34: =(NPV(Tilbagediskonteringsrente,$S$9:S34)) -> 0 | AD34: =(NPV(Tilbagediskonteringsrente,$I$9:I34)) -> 0 | AE34: =(NPV(Tilbagediskonteringsrente,$J$9:J34)) -> 0 | AG34: 0 | AH34: =AB34+AC34+AD34+AE34+SUM($AF$8:AF34)+SUM($AG$8:AG34) -> 0
B35: 27 | C35: 2038 | D35: 1.618788111 | E35: 1.24003621 | H35: =-G35*E35 -> 0 | I35: =-('Brugerinput og forudsætninger'!$N$64)*D35 -> 0 | J35: =-('Brugerinput og forudsætninger'!$O$64)*D35 -> 0 | K35: 181.4017862 | L35: 0 | M35: 181.4017862 | N35: 0 | O35: =L35*'Brugerinput og forudsætninger'!$G$70-'Brugerinput og forudsætninger'!$G$71*Beregninger!N35 -> 0 | Q35: =Energipriser!G29*D35 -> 170.7976146 | R35: 0 | S35: 0 | U35: =U34*(1+(0.75*'Brugerinput og forudsætninger'!$K$85)) -> 0 | V35: 0 | W35: 0 | Y35: 0 | AB35: =(NPV(Tilbagediskonteringsrente,$O$9:O35)) -> 0 | AC35: =(NPV(Tilbagediskonteringsrente,$S$9:S35)) -> 0 | AD35: =(NPV(Tilbagediskonteringsrente,$I$9:I35)) -> 0 | AE35: =(NPV(Tilbagediskonteringsrente,$J$9:J35)) -> 0 | AG35: 0 | AH35: =AB35+AC35+AD35+AE35+SUM($AF$8:AF35)+SUM($AG$8:AG35) -> 0
B36: 28 | C36: 2039 | D36: 1.647926297 | E36: 1.249956499 | H36: 0 | I36: =-('Brugerinput og forudsætninger'!$N$64)*D36 -> 0 | J36: =-('Brugerinput og forudsætninger'!$O$64)*D36 -> 0 | K36: 185.2687787 | L36: 0 | M36: 185.2687787 | N36: 0 | O36: =L36*'Brugerinput og forudsætninger'!$G$70-'Brugerinput og forudsætninger'!$G$71*Beregninger!N36 -> 0 | Q36: =Energipriser!G30*D36 -> 174.2963517 | R36: 0 | S36: 0 | U36: =U35*(1+(0.75*'Brugerinput og forudsætninger'!$K$85)) -> 0 | V36: 0 | W36: 0 | Y36: 0 | AB36: =(NPV(Tilbagediskonteringsrente,$O$9:O36)) -> 0 | AC36: =(NPV(Tilbagediskonteringsrente,$S$9:S36)) -> 0 | AD36: =(NPV(Tilbagediskonteringsrente,$I$9:I36)) -> 0 | AE36: =(NPV(Tilbagediskonteringsrente,$J$9:J36)) -> 0 | AG36: 0 | AH36: =AB36+AC36+AD36+AE36+SUM($AF$8:AF36)+SUM($AG$8:AG36) -> 0
B37: 29 | C37: 2040 | D37: 1.67758897 | E37: 1.259956151 | H37: 0 | I37: =-('Brugerinput og forudsætninger'!$N$64)*D37 -> 0 | J37: =-('Brugerinput og forudsætninger'!$O$64)*D37 -> 0 | K37: 189.2182049 | L37: 0 | M37: 189.2182049 | N37: 0 | O37: =L37*'Brugerinput og forudsætninger'!$G$70-'Brugerinput og forudsætninger'!$G$71*Beregninger!N37 -> 0 | Q37: =Energipriser!G31*D37 -> 177.8667594 | R37: 0 | S37: 0 | U37: =U36*(1+(0.75*'Brugerinput og forudsætninger'!$K$85)) -> 0 | V37: 0 | W37: 0 | Y37: 0 | AB37: =(NPV(Tilbagediskonteringsrente,$O$9:O37)) -> 0 | AC37: =(NPV(Tilbagediskonteringsrente,$S$9:S37)) -> 0 | AD37: =(NPV(Tilbagediskonteringsrente,$I$9:I37)) -> 0 | AE37: =(NPV(Tilbagediskonteringsrente,$J$9:J37)) -> 0 | AG37: =H37*(1+Tilbagediskonteringsrente)^-(B37) -> 0 | AH37: =AB37+AC37+AD37+AE37+SUM($AF$8:AF37)+SUM($AG$8:AG37) -> 0
B38: 30 | C38: 2041 | D38: 1.707785571 | E38: 1.270035801 | H38: =-G38*E38 -> 0 | I38: =-('Brugerinput og forudsætninger'!$N$64)*D38 -> 0 | J38: =-('Brugerinput og forudsætninger'!$O$64)*D38 -> 0 | K38: 193.2518222 | L38: 0 | M38: 193.2518222 | N38: 0 | O38: =L38*'Brugerinput og forudsætninger'!$G$70-'Brugerinput og forudsætninger'!$G$71*Beregninger!N38 -> 0 | Q38: =Energipriser!G33*D38 -> 181.9533293 | R38: 0 | S38: 0 | U38: =U37*(1+(0.75*'Brugerinput og forudsætninger'!$K$85)) -> 0 | V38: =V37 -> 0 | W38: 0 | Y38: 0 | AB38: =(NPV(Tilbagediskonteringsrente,$O$9:O38)) -> 0 | AC38: =(NPV(Tilbagediskonteringsrente,$S$9:S38)) -> 0 | AD38: =(NPV(Tilbagediskonteringsrente,$I$9:I38)) -> 0 | AE38: =(NPV(Tilbagediskonteringsrente,$J$9:J38)) -> 0 | AG38: 0 | AH38: =AB38+AC38+AD38+AE38+SUM($AF$8:AF38)+SUM($AG$8:AG38) -> 0
B39: 31 | C39: 2042 | D39: 1.738525712 | E39: 1.280196087 | H39: =-G39*E39 -> 0 | I39: =-('Brugerinput og forudsætninger'!$N$64)*D39 -> 0 | J39: =-('Brugerinput og forudsætninger'!$O$64)*D39 -> 0 | K39: 197.3714252 | L39: 0 | M39: 197.3714252 | N39: 0 | O39: =L39*'Brugerinput og forudsætninger'!$G$70-'Brugerinput og forudsætninger'!$G$71*Beregninger!N39 -> 0 | Q39: =Energipriser!G34*D39 -> 185.6805879 | R39: 0 | S39: 0 | U39: =U38*(1+(0.75*'Brugerinput og forudsætninger'!$K$85)) -> 0 | V39: =V38 -> 0 | W39: 0 | Y39: 0 | AB39: =(NPV(Tilbagediskonteringsrente,$O$9:O39)) -> 0 | AC39: =(NPV(Tilbagediskonteringsrente,$S$9:S39)) -> 0 | AD39: =(NPV(Tilbagediskonteringsrente,$I$9:I39)) -> 0 | AE39: =(NPV(Tilbagediskonteringsrente,$J$9:J39)) -> 0 | AG39: 0 | AH39: =AB39+AC39+AD39+AE39+SUM($AF$8:AF39)+SUM($AG$8:AG39) -> 0
B40: 32 | C40: 2043 | D40: 1.769819175 | E40: 1.290437656 | H40: 0 | I40: =-('Brugerinput og forudsætninger'!$N$64)*D40 -> 0 | J40: =-('Brugerinput og forudsætninger'!$O$64)*D40 -> 0 | K40: 201.5788469 | L40: 0 | M40: 201.5788469 | N40: 0 | O40: =L40*'Brugerinput og forudsætninger'!$G$70-'Brugerinput og forudsætninger'!$G$71*Beregninger!N40 -> 0 | Q40: =Energipriser!G35*D40 -> 189.4841983 | R40: 0 | S40: 0 | U40: =U39*(1+(0.75*'Brugerinput og forudsætninger'!$K$85)) -> 0 | V40: 0 | W40: 0 | Y40: 0 | AB40: =(NPV(Tilbagediskonteringsrente,$O$9:O40)) -> 0 | AC40: =(NPV(Tilbagediskonteringsrente,$S$9:S40)) -> 0 | AD40: =(NPV(Tilbagediskonteringsrente,$I$9:I40)) -> 0 | AE40: =(NPV(Tilbagediskonteringsrente,$J$9:J40)) -> 0 | AG40: 0 | AH40: =AB40+AC40+AD40+AE40+SUM($AF$8:AF40)+SUM($AG$8:AG40) -> 0
B41: 33 | C41: 2044 | D41: 1.80167592 | E41: 1.300761157 | H41: 0 | I41: =-('Brugerinput og forudsætninger'!$N$64)*D41 -> 0 | J41: =-('Brugerinput og forudsætninger'!$O$64)*D41 -> 0 | K41: 205.8759595 | L41: 0 | M41: 205.8759595 | N41: 0 | O41: =L41*'Brugerinput og forudsætninger'!$G$70-'Brugerinput og forudsætninger'!$G$71*Beregninger!N41 -> 0 | Q41: =Energipriser!G36*D41 -> 193.3657244 | R41: 0 | S41: 0 | U41: =U40*(1+(0.75*'Brugerinput og forudsætninger'!$K$85)) -> 0 | V41: 0 | W41: 0 | Y41: 0 | AB41: =(NPV(Tilbagediskonteringsrente,$O$9:O41)) -> 0 | AC41: =(NPV(Tilbagediskonteringsrente,$S$9:S41)) -> 0 | AD41: =(NPV(Tilbagediskonteringsrente,$I$9:I41)) -> 0 | AE41: =(NPV(Tilbagediskonteringsrente,$J$9:J41)) -> 0 | AG41: 0 | AH41: =AB41+AC41+AD41+AE41+SUM($AF$8:AF41)+SUM($AG$8:AG41) -> 0
B42: 34 | C42: 2045 | D42: 1.834106086 | E42: 1.311167246 | H42: 0 | I42: =-('Brugerinput og forudsætninger'!$N$64)*D42 -> 0 | J42: =-('Brugerinput og forudsætninger'!$O$64)*D42 -> 0 | K42: 210.2646747 | L42: 0 | M42: 210.2646747 | N42: 0 | O42: =L42*'Brugerinput og forudsætninger'!$G$70-'Brugerinput og forudsætninger'!$G$71*Beregninger!N42 -> 0 | Q42: =Energipriser!G37*D42 -> 197.3267624 | R42: 0 | S42: 0 | U42: =U41*(1+(0.75*'Brugerinput og forudsætninger'!$K$85)) -> 0 | V42: 0 | W42: 0 | Y42: 0 | AB42: =(NPV(Tilbagediskonteringsrente,$O$9:O42)) -> 0 | AC42: =(NPV(Tilbagediskonteringsrente,$S$9:S42)) -> 0 | AD42: =(NPV(Tilbagediskonteringsrente,$I$9:I42)) -> 0 | AE42: =(NPV(Tilbagediskonteringsrente,$J$9:J42)) -> 0 | AG42: 0 | AH42: =AB42+AC42+AD42+AE42+SUM($AF$8:AF42)+SUM($AG$8:AG42) -> 0
B43: 35 | C43: 2046 | D43: 1.867119996 | E43: 1.321656584 | H43: 0 | I43: =-('Brugerinput og forudsætninger'!$N$64)*D43 -> 0 | J43: =-('Brugerinput og forudsætninger'!$O$64)*D43 -> 0 | K43: 214.7469455 | L43: 0 | M43: 214.7469455 | N43: 0 | O43: =L43*'Brugerinput og forudsætninger'!$G$70-'Brugerinput og forudsætninger'!$G$71*Beregninger!N43 -> 0 | Q43: =Energipriser!G38*D43 -> 201.3689411 | R43: 0 | S43: 0 | U43: =U42*(1+(0.75*'Brugerinput og forudsætninger'!$K$85)) -> 0 | V43: 0 | W43: 0 | Y43: 0 | AB43: =(NPV(Tilbagediskonteringsrente,$O$9:O43)) -> 0 | AC43: =(NPV(Tilbagediskonteringsrente,$S$9:S43)) -> 0 | AD43: =(NPV(Tilbagediskonteringsrente,$I$9:I43)) -> 0 | AE43: =(NPV(Tilbagediskonteringsrente,$J$9:J43)) -> 0 | AG43: 0 | AH43: =AB43+AC43+AD43+AE43+SUM($AF$8:AF43)+SUM($AG$8:AG43) -> 0
B44: 36 | C44: 2047 | D44: 1.900728156 | E44: 1.332229837 | H44: 0 | I44: =-('Brugerinput og forudsætninger'!$N$64)*D44 -> 0 | J44: =-('Brugerinput og forudsætninger'!$O$64)*D44 -> 0 | K44: 219.324766 | L44: 0 | M44: 219.324766 | N44: 0 | O44: =L44*'Brugerinput og forudsætninger'!$G$70-'Brugerinput og forudsætninger'!$G$71*Beregninger!N44 -> 0 | Q44: =Energipriser!G39*D44 -> 205.4939226 | R44: 0 | S44: 0 | U44: =U43*(1+(0.75*'Brugerinput og forudsætninger'!$K$85)) -> 0 | V44: 0 | W44: 0 | Y44: 0 | AB44: =(NPV(Tilbagediskonteringsrente,$O$9:O44)) -> 0 | AC44: =(NPV(Tilbagediskonteringsrente,$S$9:S44)) -> 0 | AD44: =(NPV(Tilbagediskonteringsrente,$I$9:I44)) -> 0 | AE44: =(NPV(Tilbagediskonteringsrente,$J$9:J44)) -> 0 | AG44: 0 | AH44: =AB44+AC44+AD44+AE44+SUM($AF$8:AF44)+SUM($AG$8:AG44) -> 0
B45: 37 | C45: 2048 | D45: 1.934941263 | E45: 1.342887675 | H45: 0 | I45: =-('Brugerinput og forudsætninger'!$N$64)*D45 -> 0 | J45: =-('Brugerinput og forudsætninger'!$O$64)*D45 -> 0 | K45: 224.0001732 | L45: 0 | M45: 224.0001732 | N45: 0 | O45: =L45*'Brugerinput og forudsætninger'!$G$70-'Brugerinput og forudsætninger'!$G$71*Beregninger!N45 -> 0 | Q45: =Energipriser!G40*D45 -> 209.7034031 | R45: 0 | S45: 0 | U45: =U44*(1+(0.75*'Brugerinput og forudsætninger'!$K$85)) -> 0 | V45: 0 | W45: 0 | Y45: 0 | AB45: =(NPV(Tilbagediskonteringsrente,$O$9:O45)) -> 0 | AC45: =(NPV(Tilbagediskonteringsrente,$S$9:S45)) -> 0 | AD45: =(NPV(Tilbagediskonteringsrente,$I$9:I45)) -> 0 | AE45: =(NPV(Tilbagediskonteringsrente,$J$9:J45)) -> 0 | AG45: 0 | AH45: =AB45+AC45+AD45+AE45+SUM($AF$8:AF45)+SUM($AG$8:AG45) -> 0
B46: 38 | C46: 2049 | D46: 1.969770205 | E46: 1.353630777 | H46: 0 | I46: =-('Brugerinput og forudsætninger'!$N$64)*D46 -> 0 | J46: =-('Brugerinput og forudsætninger'!$O$64)*D46 -> 0 | K46: 228.7752474 | L46: 0 | M46: 228.7752474 | N46: 0 | O46: =L46*'Brugerinput og forudsætninger'!$G$70-'Brugerinput og forudsætninger'!$G$71*Beregninger!N46 -> 0 | Q46: =Energipriser!G41*D46 -> 213.9991135 | R46: 0 | S46: 0 | U46: =U45*(1+(0.75*'Brugerinput og forudsætninger'!$K$85)) -> 0 | V46: 0 | W46: 0 | Y46: 0 | AB46: =(NPV(Tilbagediskonteringsrente,$O$9:O46)) -> 0 | AC46: =(NPV(Tilbagediskonteringsrente,$S$9:S46)) -> 0 | AD46: =(NPV(Tilbagediskonteringsrente,$I$9:I46)) -> 0 | AE46: =(NPV(Tilbagediskonteringsrente,$J$9:J46)) -> 0 | AG46: 0 | AH46: =AB46+AC46+AD46+AE46+SUM($AF$8:AF46)+SUM($AG$8:AG46) -> 0
B47: 39 | C47: =C46+1 -> 2050 | D47: 2.005226069 | E47: 1.364459823 | H47: 0 | I47: =-('Brugerinput og forudsætninger'!$N$64)*D47 -> 0 | J47: =-('Brugerinput og forudsætninger'!$O$64)*D47 -> 0 | K47: =INDEX(EnergiIndeks,B47+2,$AS$8)*D47 -> 232.8932019 | L47: 0 | M47: =INDEX(EnergiIndeks,B47+2,$AS$9)*D47 -> 232.8932019 | N47: 0 | O47: =L47*'Brugerinput og forudsætninger'!$G$70-'Brugerinput og forudsætninger'!$G$71*Beregninger!N47 -> 0 | Q47: =Energipriser!G42*D47 -> 218.3828202 | R47: 0 | S47: 0 | U47: =U46*(1+(0.75*'Brugerinput og forudsætninger'!$K$85)) -> 0 | V47: 0 | W47: 0 | Y47: =S47+O47-W47+I47+J47 -> 0 | AB47: =(NPV(Tilbagediskonteringsrente,$O$9:O47)) -> 0 | AC47: =(NPV(Tilbagediskonteringsrente,$S$9:S47)) -> 0 | AD47: =(NPV(Tilbagediskonteringsrente,$I$9:I47)) -> 0 | AE47: =(NPV(Tilbagediskonteringsrente,$J$9:J47)) -> 0 | AG47: 0 | AH47: =AB47+AC47+AD47+AE47+SUM($AF$8:AF47)+SUM($AG$8:AG47) -> 0
B48: 40 | C48: 2051 | D48: 2.041320138 | E48: 1.375375502 | H48: 0 | I48: =-('Brugerinput og forudsætninger'!$N$64)*D48 -> 0 | J48: =-('Brugerinput og forudsætninger'!$O$64)*D48 -> 0 | K48: =INDEX(EnergiIndeks,B48+1,$AS$8)*D48 -> 237.0852795 | L48: 0 | M48: =INDEX(EnergiIndeks,B48+1,$AS$9)*D48 -> 237.0852795 | N48: 0 | O48: =L48*'Brugerinput og forudsætninger'!$G$70-'Brugerinput og forudsætninger'!$G$71*Beregninger!N48 -> 0 | Q48: =Energipriser!G43*D48 -> 222.8563258 | R48: 0 | S48: 0 | U48: =U47*(1+(0.75*'Brugerinput og forudsætninger'!$K$85)) -> 0 | V48: 0 | W48: 0 | Y48: 0 | AB48: =(NPV(Tilbagediskonteringsrente,$O$9:O48)) -> 0 | AC48: =(NPV(Tilbagediskonteringsrente,$S$9:S48)) -> 0 | AD48: =(NPV(Tilbagediskonteringsrente,$I$9:I48)) -> 0 | AE48: =(NPV(Tilbagediskonteringsrente,$J$9:J48)) -> 0 | AF48: ='Brugerinput og forudsætninger'!J64 -> 0 | AG48: 0 | AH48: =AB48+AC48+AD48+AE48+SUM($AF$8:AF48)+SUM($AG$8:AG48) -> 0
H49: =NPV(Tilbagediskonteringsrente,H9:H48) -> 0 | I49: =NPV(Tilbagediskonteringsrente,I9:I48) -> 0 | J49: =NPV(Tilbagediskonteringsrente,J9:J48) -> 0 | O49: =NPV(Tilbagediskonteringsrente,O9:O48) -> 0 | S49: =NPV(Tilbagediskonteringsrente,S9:S48) -> 0 | W49: =NPV(Tilbagediskonteringsrente,W9:W48) -> 0 | Y49: =NPV(Tilbagediskonteringsrente,Y9:Y48) -> 0

Sheet Energipriser
A1: 3: Energistyrelsens fremskrivninger
A2: Reference:Samfundsøkonomiske beregningsforudsætninger for energipriser og emissioner, Maj 2017 | B2: Fjernvarme | F2: El | J2: Naturgas | N2: Gasolie | R2: Træpiller
B3: 2009-Kr./GJ | C3: Fjernvarme | F3: 2019-Kr./MWh | G3: El | J3: 2019-Kr./GJ | K3: Naturgas | N3: 2019-Kr./GJ | O3: Gasolie | R3: 2019-Kr./GJ | S3: Gasolie
B4: An forbruger | C4: Indeks | D4: % stigning | E4: Beregningstjek | F4: An forbruger | G4: Indeks | H4: % stigning | I4: Beregningstjek | J4: An forbruger | K4: Indeks | L4: % stigning | M4: Beregningstjek | N4: An forbruger | O4: Indeks | P4: % stigning | Q4: Beregningstjek | R4: An forbruger | S4: Indeks | T4: % stigning
A5: 2019 | B5: 64,3 | C5: 100 | D5: 0 | E5: =C5 -> 100 | F5: 675 | G5: 100 | H5: 0 | I5: =G5 -> 100 | J5: 53.9 | K5: 100 | L5: 0 | M5: =K5 -> 100 | N5: 118.1 | O5: 100 | P5: 0 | Q5: =O5 -> 100 | R5: 104.8 | S5: 100 | T5: 0 | U5: =#REF!*(1+$T$23/100) -> 
A6: =A5+1 -> 2020 | B6: 64,4 | C6: =C5*(100+D6)/100 -> 100.155521 | D6: =(B6/B5-1)*100 -> 0.1555209953 | E6: =E5*(1+$D$23/100) -> 100.3258624 | F6: 696 | G6: =G5*(100+H6)/100 -> 103.1111111 | H6: =(F6/F5-1)*100 -> 3.111111111 | I6: =I5*(1+$H$23/100) -> 100 | J6: 48 | K6: =K5*(100+L6)/100 -> 89.05380334 | L6: =(J6/J5-1)*100 -> -10.94619666 | M6: =M5*(1+$L$23/100) -> 101.0714286 | N6: 120.1 | O6: =O5*(100+P6)/100 -> 101.6934801 | P6: =(N6/N5-1)*100 -> 1.693480102 | Q6: =Q5*(1+$P$23/100) -> 100.9569378 | R6: 105.7 | S6: =S5*(100+T6)/100 -> 100.8587786 | T6: =(R6/R5-1)*100 -> 0.858778626 | U6: =U5*(1+$T$23/100) -> 
A7: =A6+1 -> 2021 | B7: 65,6 | C7: 102.0217729 | D7: =(B7/B6-1)*100 -> 1.863354037 | E7: 100.6527866 | F7: 686 | G7: 101.6296296 | H7: -1.436781609 | I7: 100 | J7: 40.6 | K7: 75.32467532 | L7: -15.41666667 | M7: 102.1543367 | N7: 121.9 | O7: 103.2176122 | P7: 1.498751041 | Q7: 101.9230329 | R7: 108 | S7: 103.0534351 | T7: =(R7/R6-1)*100 -> 2.175969726
A8: 2022 | B8: 65,7 | C8: 102.1772939 | D8: 0.1524390244 | E8: 100.9807762 | F8: 686 | G8: 101.6296296 | H8: 0 | I8: 100 | J8: 40.3 | K8: 74.76808905 | L8: -0.7389162562 | M8: 103.2488475 | N8: 123.5 | O8: 104.5723963 | P8: 1.312551272 | Q8: 102.8983729 | R8: 107.3 | S8: 102.3854962 | T8: -0.6481481481
A9: 2023 | B9: 65,9 | C9: 102.4883359 | D9: 0.304414003 | E9: 101.3098345 | F9: 707 | G9: 104.7407407 | H9: 3.06122449 | I9: 100 | J9: 41.3 | K9: 76.62337662 | L9: 2.481389578 | M9: 104.3550851 | N9: 125.2 | O9: 106.0118544 | P9: 1.376518219 | Q9: 103.8830464 | R9: 107.3 | S9: 102.3854962 | T9: 0
A10: 2024 | B10: 67,9 | C10: 105.5987558 | D10: 3.034901366 | E10: 101.6399652 | F10: 718 | G10: 106.3703704 | H10: 1.555869873 | I10: 100 | J10: 42.4 | K10: 78.66419295 | L10: 2.663438257 | M10: 105.4731753 | N10: 126.9 | O10: 107.4513124 | P10: 1.357827476 | Q10: 104.8771425 | R10: 107.3 | S10: 102.3854962 | T10: 0
A11: 2025 | B11: 67,2 | C11: 104.5101089 | D11: -1.030927835 | E11: 101.9711716 | F11: 728 | G11: 107.8518519 | H11: 1.39275766 | I11: 100 | J11: 43.4 | K11: 80.51948052 | L11: 2.358490566 | M11: 106.6032451 | N11: 128.2 | O11: 108.5520745 | P11: 1.024428684 | Q11: 105.8807515 | R11: 107.4 | S11: 102.480916 | T11: 0.09319664492
A12: 2026 | B12: 66,9 | C12: 104.0435459 | D12: -0.4464285714 | E12: 102.3034573 | F12: 718 | G12: 106.3703704 | H12: -1.373626374 | I12: 100 | J12: 44.6 | K12: 82.7458256 | L12: 2.764976959 | M12: 107.7454227 | N12: 130.9 | O12: 110.8382727 | P12: 2.106084243 | Q12: 106.8939644 | R12: 107.6 | S12: 102.6717557 | T12: 0.1862197393
A13: 2027 | B13: 67,7 | C13: 105.2877138 | D13: 1.195814649 | E13: 102.6368257 | F13: 718 | G13: 106.3703704 | H13: 0 | I13: 100 | J13: 45.8 | K13: 84.97217069 | L13: 2.69058296 | M13: 108.8998379 | N13: 132.4 | O13: 112.1083827 | P13: 1.145912911 | Q13: 107.9168732 | R13: 107.7 | S13: 102.7671756 | T13: 0.09293680297
A14: 2028 | B14: 67,7 | C14: 105.2877138 | D14: 0 | E14: 102.9712805 | F14: 718 | G14: 106.3703704 | H14: 0 | I14: 100 | J14: 47 | K14: 87.19851577 | L14: 2.620087336 | M14: 110.0666219 | N14: 133.8 | O14: 113.2938188 | P14: 1.057401813 | Q14: 108.9495705 | R14: 108.1 | S14: 103.148855 | T14: 0.3714020427
A15: =A14+1 -> 2029 | B15: 68,0 | C15: 105.7542768 | D15: =(B15/B14-1)*100 -> 0.4431314623 | E15: 103.3068252 | F15: 707 | G15: 104.7407407 | H15: =(F15/F14-1)*100 -> -1.532033426 | I15: 100 | J15: 48 | K15: 89.05380334 | L15: =(J15/J14-1)*100 -> 2.127659574 | M15: 111.2459072 | N15: 135.1 | O15: 114.3945809 | P15: 0.9715994021 | Q15: 109.9921502 | R15: 108.5 | S15: 103.5305344 | T15: =(R15/R14-1)*100 -> 0.3700277521
A16: =A15+1 -> 2030 | B16: 68,4 | C16: 106.3763608 | D16: =(B16/B15-1)*100 -> 0.5882352941 | E16: 103.6434633 | F16: 707 | G16: 104.7407407 | H16: =(F16/F15-1)*100 -> 0 | I16: 100 | J16: 49.1 | K16: 91.09461967 | L16: =(J16/J15-1)*100 -> 2.291666667 | M16: 112.4378276 | N16: 136.3 | O16: 115.4106689 | P16: 0.88823094 | Q16: 111.0447066 | R16: 108.8 | S16: 103.8167939 | T16: =(R16/R15-1)*100 -> 0.2764976959 | U16: =#REF!*(1+$T$23/100) -> 
A17: =A16+1 -> 2031 | C17: 106.7230013 | D17: =((C16/100)^(1/19)-1)*100 -> 0.3258623776 | E17: 103.9811983 | F17: 707 | G17: 104.7407407 | H17: =(F17/F16-1)*100 -> 0 | I17: 100 | J17: 50.2 | K17: 93.13543599 | L17: =(J17/J16-1)*100 -> 2.240325866 | M17: 113.6425186 | N17: 137.9 | O17: 116.765453 | P17: 1.173881145 | Q17: 112.1073354 | R17: 109.2 | S17: 104.1984733 | T17: =(R17/R16-1)*100 -> 0.3676470588 | U17: =U16*(1+$T$23/100) -> 
A18: =A17+1 -> 2032 | C18: 107.0707715 | D18: =D17 -> 0.3258623776 | E18: 104.3200339 | F18: 707 | G18: 104.7407407 | H18: =(F18/F17-1)*100 -> 0 | I18: 100 | J18: 51.3 | K18: 95.17625232 | L18: =(J18/J17-1)*100 -> 2.19123506 | M18: 114.860117 | N18: 139.7 | O18: 118.2895851 | P18: 1.305293691 | Q18: 113.1801329 | R18: 109.6 | S18: 104.5801527 | T18: =(R18/R17-1)*100 -> 0.3663003663
A19: 2033 | C19: 107.4196748 | D19: =D18 -> 0.3258623776 | E19: 104.6599737 | F19: 697 | G19: 103.2592593 | H19: -1.414427157 | I19: 100 | J19: 52.4 | K19: 97.21706865 | L19: 2.144249513 | M19: 116.0907611 | N19: 141.5 | O19: 119.8137172 | P19: 1.288475304 | Q19: 114.2631963 | R19: 109.9 | S19: 104.8664122 | T19: 0.2737226277
A20: 2034 | C20: 107.7697151 | D20: =D19 -> 0.3258623776 | E20: 105.0010212 | F20: 707 | G20: 104.7407407 | H20: 1.43472023 | I20: 100 | J20: 53.4 | K20: 99.07235622 | L20: 1.908396947 | M20: 117.3345907 | N20: 143.2 | O20: 121.2531753 | P20: 1.201413428 | Q20: 115.3566241 | R20: 110.2 | S20: 105.1526718 | T20: 0.2729754322
A21: 2035 | C21: 108.1208961 | D21: =D20 -> 0.3258623776 | E21: 105.34318 | F21: 707 | G21: 104.7407407 | H21: 0 | I21: 100 | J21: 54.4 | K21: 100.9276438 | L21: 1.872659176 | M21: 118.591747 | N21: 144.8 | O21: 122.6079594 | P21: 1.117318436 | Q21: 116.4605152 | R21: 110.5 | S21: 105.4389313 | T21: 0.2722323049
A22: 2036 | C22: 108.4732214 | D22: 0.3258623776 | E22: 105.6864538 | F22: 707 | G22: 104.7407407 | H22: 0 | I22: 100 | J22: 56 | K22: 103.8961039 | L22: 2.941176471 | M22: 119.8623729 | N22: 146.3 | O22: 123.8780694 | P22: 1.035911602 | Q22: 117.5749699 | R22: 110.8 | S22: 105.7251908 | T22: 0.2714932127
A23: =A22+1 -> 2037 | C23: 108.8266948 | D23: 0.3258623776 | E23: 106.0308462 | F23: 707 | G23: 104.7407407 | H23: 0 | I23: 100 | J23: 56.6 | K23: 105.0092764 | L23: 1.071428571 | M23: 121.1466126 | N23: 147.7 | O23: 125.0635055 | P23: 0.956937799 | Q23: 118.7000892 | R23: 111.1 | S23: =S22*(100+T23)/100 -> 106.0114504 | T23: 0.2707581227
A24: =A23+1 -> 2038 | C24: 109.1813201 | D24: 0.3258623776 | E24: 106.3763608 | F24: 707 | G24: 104.7407407 | H24: 0 | I24: 100 | J24: 57.2 | K24: 106.122449 | L24: 1.060070671 | M24: 122.444612 | N24: 149.1 | O24: 126.2489416 | P24: 0.9478672986 | Q24: 119.8359752 | R24: 111.4 | S24: =S23*(100+T24)/100 -> 106.2977099 | T24: 0.2700270027
A25: 2039 | C25: 109.5371009 | D25: 0.3258623776 | E25: 106.7230013 | F25: 707 | G25: 104.7407407 | H25: 0 | I25: 100 | J25: 57.7 | K25: 107.0500928 | L25: 0.8741258741 | M25: 123.7565186 | N25: 150.3 | O25: 127.2650296 | P25: 0.8048289738 | Q25: 120.982731 | R25: 111.7 | S25: =S24*(100+T25)/100 -> 106.5839695 | T25: 0.2692998205
A26: 2040 | C26: 109.8940411 | D26: 0.3258623776 | F26: 707 | G26: =G25*(100+H26)/100 -> 104.7407407 | H26: 0 | J26: 58.2 | K26: =K25*(100+L26)/100 -> 107.9777365 | L26: 0.8665511265 | N26: 151.5 | O26: =O25*(100+P26)/100 -> 128.2811177 | P26: 0.7984031936 | R26: 111.9 | S26: 106.7748092 | T26: 0.1790510295
A27: 2041 | C27: 110.2521445 | D27: 0.3258623776 | G27: 104.996388 | H27: =((G26/100)^(1/19)-1)*100 -> 0.2440761981 | K27: 108.4148197 | L27: =((K26/100)^(1/19)-1)*100 -> 0.4047901069 | O27: 129.9737085 | P27: =((O26/100)^(1/19)-1)*100 -> 1.319438785 | S27: 107.1438288 | T27: =((S26/100)^(1/19)-1)*100 -> 0.3456055458
A28: 2042 | C28: 110.6114147 | D28: 0.3258623776 | G28: 105.2526592 | H28: =H27 -> 0.2440761981 | K28: 108.8536722 | L28: =L27 -> 0.4047901069 | O28: 131.688632 | P28: =P27 -> 1.319438785 | S28: 107.5141238 | T28: =T27 -> 0.3456055458
A29: 2043 | C29: 110.9718557 | D29: 0.3258623776 | G29: 105.5095558 | H29: 0.2440761981 | K29: 109.2943011 | L29: 0.4047901069 | O29: 133.4261829 | P29: 1.319438785 | S29: 107.8856986 | T29: 0.3456055458
A30: 2044 | C30: 111.3334712 | D30: 0.3258623776 | G30: 105.7670796 | H30: 0.2440761981 | K30: 109.7367136 | L30: 0.4047901069 | O30: 135.1866597 | P30: 1.319438785 | S30: 108.2585576 | T30: 0.3456055458
A31: 2045 | C31: 111.6962651 | D31: 0.3258623776 | G31: 106.0252318 | H31: 0.2440761981 | K31: 110.180917 | L31: 0.4047901069 | O31: 136.9703649 | P31: 1.319438785 | S31: 108.6327051 | T31: 0.3456055458
A32: =A31+1 -> 2046 | C32: 112.0602412 | D32: 0.3258623776 | G32: 106.2840142 | H32: =H31 -> 0.2440761981 | K32: 110.6269184 | L32: =L31 -> 0.4047901069 | O32: 138.7776051 | P32: =P31 -> 1.319438785 | S32: 109.0081458 | T32: =T31 -> 0.3456055458
A33: =A32+1 -> 2047 | C33: 112.4254034 | D33: 0.3258623776 | G33: 106.5434282 | H33: =H32 -> 0.2440761981 | K33: 111.0747253 | L33: =L32 -> 0.4047901069 | O33: 140.6086906 | P33: =P32 -> 1.319438785 | S33: 109.384884 | T33: =T32 -> 0.3456055458
A34: =A33+1 -> 2048 | C34: 112.7917555 | D34: 0.3258623776 | G34: 106.8034753 | H34: =H33 -> 0.2440761981 | K34: 111.5243448 | L34: =L33 -> 0.4047901069 | O34: 142.4639362 | P34: =P33 -> 1.319438785 | S34: 109.7629242 | T34: =T33 -> 0.3456055458
A35: =A34+1 -> 2049 | C35: 113.1593014 | D35: 0.3258623776 | G35: 107.0641572 | H35: =H34 -> 0.2440761981 | K35: 111.9757843 | L35: =L34 -> 0.4047901069 | O35: 144.3436606 | P35: =P34 -> 1.319438785 | S35: 110.142271 | T35: =T34 -> 0.3456055458
A36: 2050 | C36: 113.528045 | D36: 0.3258623776 | G36: 107.3254753 | H36: 0.2440761981 | K36: 112.4290512 | L36: 0.4047901069 | O36: 146.2481869 | P36: 1.319438785 | S36: 110.5229288 | T36: 0.3456055458
A37: 2051 | C37: 113.8979902 | D37: 0.3258623776 | G37: 107.5874312 | H37: 0.2440761981 | K37: 112.8841528 | L37: 0.4047901069 | O37: 148.1778422 | P37: 1.319438785 | S37: 110.9049021 | T37: 0.3456055458
A38: 2052 | C38: 114.2691409 | D38: 0.3258623776 | G38: 107.8500265 | H38: 0.2440761981 | K38: 113.3410967 | L38: 0.4047901069 | O38: 150.1329581 | P38: 1.319438785 | S38: 111.2881956 | T38: 0.3456055458
A39: 2053 | C39: 114.641501 | D39: 0.3258623776 | G39: 108.1132628 | H39: 0.2440761981 | K39: 113.7998903 | L39: 0.4047901069 | O39: 152.1138706 | P39: 1.319438785 | S39: 111.6728138 | T39: 0.3456055458
A40: =A39+1 -> 2054 | C40: 115.0150745 | D40: 0.3258623776 | G40: 108.3771415 | H40: 0.2440761981 | K40: 114.260541 | L40: 0.4047901069 | O40: 154.12092 | P40: 1.319438785 | S40: 112.0587613 | T40: 0.3456055458
A41: =A40+1 -> 2055 | C41: 115.3898654 | D41: 0.3258623776 | G41: 108.6416643 | H41: 0.2440761981 | K41: 114.7230563 | L41: 0.4047901069 | O41: 156.1544512 | P41: 1.319438785 | S41: 112.4460425 | T41: 0.3456055458
A42: =A41+1 -> 2056 | C42: 115.7658775 | D42: 0.3258623776 | G42: 108.9068328 | H42: 0.2440761981 | K42: 115.1874439 | L42: 0.4047901069 | O42: 158.2148136 | P42: 1.319438785 | S42: 112.8346623 | T42: 0.3456055458
A43: =A42+1 -> 2057 | C43: 116.143115 | D43: 0.3258623776 | G43: 109.1726484 | H43: 0.2440761981 | K43: 115.6537113 | L43: =L42 -> 0.4047901069 | O43: 160.3023612 | P43: 1.319438785 | S43: 113.2246252 | T43: 0.3456055458
U64: 19

Sheet Eksempel 1
B2: Brugerberegning | J2: Bossident | L2: 1234578 12345678 1234567812
B4: Totaløkonomiberegning | N4: RESULTAT:
C5: Investeringer i nutidskroner | N5: =IF(AND(N13="Beregningen er totaløkonomisk",N24="Brugerøkonomien er positiv"),"Kravet om totaløkonomisk såvel som brugerøkonomisk rentabilitet er opfyldt, og projektet opfylder dermed de krævede økonomiske kriterier.","-") -> -
E6: Initialinvesteringer | K6: =-'[7]Brugerinput og forudsætninger'!L64 -> -250000 | L6: kr.
E7: Reinvesteringer | K7: =[7]Beregninger!H49 -> -140328.5464 | L7: kr.
E8: Ændring i årlige vedligeholdelsesomkostninger, tilslutningsafgifer m.v. | K8: =[7]Beregninger!I49+[7]Beregninger!J49 -> -8329.557543 | L8: kr. | N8: =IF(AND(N13="Beregningen er IKKE totaløkonomisk",N24="Brugerøkonomien er negativ"),"Kravet om totaløkonomisk rentabilitet såvel som en positiv brugerøkonomi er ikke opfyldt.","-") -> -
E9: Scrapværdi | K9: =J64 -> 57348.2475 | L9: kr.
C10: Varmebesparelser | K10: =[7]Beregninger!O49 -> 198606.3807 | L10: kr.
C11: Elbesparelser | K11: =[7]Beregninger!S49 -> -5504.777691 | L11: kr.
C13: Total | K13: =SUM(K6:K11) -> -148208.2534 | L13: kr. | N13: =IF(K13>0,"Beregningen er totaløkonomisk rentabel",IF(K13<0,"Beregningen er IKKE totaløkonomisk rentabel")) -> Beregningen er IKKE totaløkonomisk rentabel
B17: Brugerøkonomi
C18: Brugerøkonomi det første år
E19: Brugerbetaling | K19: =-[7]Beregninger!W9 -> 8411.5 | L19: kr.
E20: Varmebesparelser det første år | K20: =[7]Beregninger!O9 -> 6967.91522 | L20: kr.
E21: Elbesparelser det første år | K21: =[7]Beregninger!S9 -> -204.2450048 | L21: kr.
E22: Årlige andre besparelser - f.eks. tilslutningsafgifter m.v. | K22: =-O64 -> 0 | L22: kr.
C24: Total | K24: =SUM(K19:K22) -> 15175.17022 | L24: kr. | N24: =IF(K24<0,"Brugerøkonomien er negativ",IF(K24>0,"Brugerøkonomien er positiv")) -> Brugerøkonomien er positiv
B29: Investeringer og levetider - Forbedret bygning
G30: Levetid | H30: Antal reinvesteringer | I30: Afskrivningsfaktor efter 40 år | J30: Scrapværdi efter 40 år. I nutidskroner | K30: Dokumentation | L30: Initialinvestering - Merpris eller totalpris | M30: Dokumentation | N30: Årlige vedligeholdelsesomkostninger samt service og tilsyn | O30: Årlige udgifter der ikke indeholder service, tilsyn eller vedligehold. | P30: Dokumentation
F31: Kort beskrivelse | G31: år | L31: Nutidskroner | N31: Nutidskroner | O31: Nutidskroner
B32: Tiltag 1
C33: Titel | F33: Forbedret tæthed - ned til lavenergi krav
E34: Tættere bygning | G34: 60 | H34: =calcReinvestments(G34) -> 0 | I34: =IF(G34>0,((G34-(40-H34*G34))/G34),0) -> 0.3333333333 | J34: =IF(H34=0,(L34*I34)/(1+Tilbagediskonteringsrente)^40,(((1+Produktivitetsindeks)^(G34*H34))*L34*I34)/(1+Tilbagediskonteringsrente)^40) -> 6880.136258 | K34: Afsnit X.X | L34: 90000 | M34: Afsnit X.X | N34: 0 | O34: 0 | P34: Afsnit X.X
G35: 0 | H35: =calcReinvestments(G35) -> 0 | I35: =IF(G35>0,((G35-(40-H35*G35))/G35),0) -> 0 | J35: =IF(H35=0,(L35*I35)/(1+Tilbagediskonteringsrente)^40,(((1+Produktivitetsindeks)^(G35*H35))*L35*I35)/(1+Tilbagediskonteringsrente)^40) -> 0 | K35: Afsnit X.X | L35: 0 | M35: Afsnit X.X | N35: 0 | O35: 0 | P35: Afsnit X.X
B36: Tiltag 2
C37: Titel | F37: Solvarmeanlæg til varmt brugsvand
E38: Solvarmeanlæg | G38: 20 | H38: =calcReinvestments(G38) -> 2 | I38: =IF(G38>0,((G38-(40-H38*G38))/G38),0) -> 1 | J38: =IF(H38=0,(L38*I38)/(1+Tilbagediskonteringsrente)^40,(((1+Produktivitetsindeks)^(G38*H38))*L38*I38)/(1+Tilbagediskonteringsrente)^40) -> 50468.11124 | K38: Afsnit X.X | L38: 160000 | M38: Afsnit X.X | N38: 300 | O38: 0 | P38: Afsnit X.X
G39: 0 | H39: =calcReinvestments(G39) -> 0 | I39: =IF(G39>0,((G39-(40-H39*G39))/G39),0) -> 0 | J39: =IF(H39=0,(L39*I39)/(1+Tilbagediskonteringsrente)^40,(((1+Produktivitetsindeks)^(G39*H39))*L39*I39)/(1+Tilbagediskonteringsrente)^40) -> 0 | K39: Afsnit X.X | L39: 0 | M39: Afsnit X.X | N39: 0 | O39: 0 | P39: Afsnit X.X
B40: Tiltag 3
C41: Titel | F41: Intet tiltag
E42: Hovedkomponent 1 | G42: 0 | H42: =calcReinvestments(G42) -> 0 | I42: =IF(G42>0,((G42-(40-H42*G42))/G42),0) -> 0 | J42: =IF(H42=0,(L42*I42)/(1+Tilbagediskonteringsrente)^40,(((1+Produktivitetsindeks)^(G42*H42))*L42*I42)/(1+Tilbagediskonteringsrente)^40) -> 0 | K42: Afsnit X.X | L42: 0 | M42: Afsnit X.X | N42: 0 | O42: 0 | P42: Afsnit X.X
E43: Hovedkomponent 2 | G43: 0 | H43: =calcReinvestments(G43) -> 0 | I43: =IF(G43>0,((G43-(40-H43*G43))/G43),0) -> 0 | J43: =IF(H43=0,(L43*I43)/(1+Tilbagediskonteringsrente)^40,(((1+Produktivitetsindeks)^(G43*H43))*L43*I43)/(1+Tilbagediskonteringsrente)^40) -> 0 | K43: Afsnit X.X | L43: 0 | M43: Afsnit X.X | N43: 0 | O43: 0 | P43: Afsnit X.X
B44: Tiltag 4
C45: Titel | F45: Intet tiltag
E46: Hovedkomponent 1 | G46: 0 | H46: =calcReinvestments(G46) -> 0 | I46: =IF(G46>0,((G46-(40-H46*G46))/G46),0) -> 0 | J46: =IF(H46=0,(L46*I46)/(1+Tilbagediskonteringsrente)^40,(((1+Produktivitetsindeks)^(G46*H46))*L46*I46)/(1+Tilbagediskonteringsrente)^40) -> 0 | K46: Afsnit X.X | L46: 0 | M46: Afsnit X.X | N46: 0 | O46: 0 | P46: Afsnit X.X
E47: Hovedkomponent 2 | G47: 0 | H47: =calcReinvestments(G47) -> 0 | I47: =IF(G47>0,((G47-(40-H47*G47))/G47),0) -> 0 | J47: =IF(H47=0,(L47*I47)/(1+Tilbagediskonteringsrente)^40,(((1+Produktivitetsindeks)^(G47*H47))*L47*I47)/(1+Tilbagediskonteringsrente)^40) -> 0 | K47: Afsnit X.X | L47: 0 | M47: Afsnit X.X | N47: 0 | O47: 0 | P47: Afsnit X.X
B48: Tiltag 5
C49: Titel | F49: Intet tiltag
E50: Hovedkomponent 1 | G50: 0 | H50: =calcReinvestments(G50) -> 0 | I50: =IF(G50>0,((G50-(40-H50*G50))/G50),0) -> 0 | J50: =IF(H50=0,(L50*I50)/(1+Tilbagediskonteringsrente)^40,(((1+Produktivitetsindeks)^(G50*H50))*L50*I50)/(1+Tilbagediskonteringsrente)^40) -> 0 | K50: Afsnit X.X | L50: 0 | M50: Afsnit X.X | N50: 0 | O50: 0 | P50: Afsnit X.X
E51: Hovedkomponent 2 | G51: 0 | H51: =calcReinvestments(G51) -> 0 | I51: =IF(G51>0,((G51-(40-H51*G51))/G51),0) -> 0 | J51: =IF(H51=0,(L51*I51)/(1+Tilbagediskonteringsrente)^40,(((1+Produktivitetsindeks)^(G51*H51))*L51*I51)/(1+Tilbagediskonteringsrente)^40) -> 0 | K51: Afsnit X.X | L51: 0 | M51: Afsnit X.X | N51: 0 | O51: 0 | P51: Afsnit X.X
B52: Tiltag 6
C53: Titel | F53: Intet tiltag
E54: Hovedkomponent 1 | G54: 0 | H54: =calcReinvestments(G54) -> 0 | I54: =IF(G54>0,((G54-(40-H54*G54))/G54),0) -> 0 | J54: =IF(H54=0,(L54*I54)/(1+Tilbagediskonteringsrente)^40,(((1+Produktivitetsindeks)^(G54*H54))*L54*I54)/(1+Tilbagediskonteringsrente)^40) -> 0 | K54: Afsnit X.X | L54: 0 | M54: Afsnit X.X | N54: 0 | O54: 0 | P54: Afsnit X.X
E55: Hovedkomponent 2 | G55: 0 | H55: =calcReinvestments(G55) -> 0 | I55: =IF(G55>0,((G55-(40-H55*G55))/G55),0) -> 0 | J55: =IF(H55=0,(L55*I55)/(1+Tilbagediskonteringsrente)^40,(((1+Produktivitetsindeks)^(G55*H55))*L55*I55)/(1+Tilbagediskonteringsrente)^40) -> 0 | K55: Afsnit X.X | L55: 0 | M55: Afsnit X.X | N55: 0 | O55: 0 | P55: Afsnit X.X
B56: Tiltag 7
C57: Titel | F57: Intet tiltag
E58: Hovedkomponent 1 | G58: 0 | H58: =calcReinvestments(G58) -> 0 | I58: =IF(G58>0,((G58-(40-H58*G58))/G58),0) -> 0 | J58: =IF(H58=0,(L58*I58)/(1+Tilbagediskonteringsrente)^40,(((1+Produktivitetsindeks)^(G58*H58))*L58*I58)/(1+Tilbagediskonteringsrente)^40) -> 0 | K58: Afsnit X.X | L58: 0 | M58: Afsnit X.X | N58: 0 | O58: 0 | P58: Afsnit X.X
E59: Hovedkomponent 2 | G59: 0 | H59: =calcReinvestments(G59) -> 0 | I59: =IF(G59>0,((G59-(40-H59*G59))/G59),0) -> 0 | J59: =IF(H59=0,(L59*I59)/(1+Tilbagediskonteringsrente)^40,(((1+Produktivitetsindeks)^(G59*H59))*L59*I59)/(1+Tilbagediskonteringsrente)^40) -> 0 | K59: Afsnit X.X | L59: 0 | M59: Afsnit X.X | N59: 0 | O59: 0 | P59: Afsnit X.X
B60: Tiltag 8
C61: Titel | F61: Intet tiltag
E62: Hovedkomponent 1 | G62: 0 | H62: =calcReinvestments(G62) -> 0 | I62: =IF(G62>0,((G62-(40-H62*G62))/G62),0) -> 0 | J62: =IF(H62=0,(L62*I62)/(1+Tilbagediskonteringsrente)^40,(((1+Produktivitetsindeks)^(G62*H62))*L62*I62)/(1+Tilbagediskonteringsrente)^40) -> 0 | K62: Afsnit X.X | L62: 0 | M62: Afsnit X.X | N62: 0 | O62: 0 | P62: Afsnit X.X
E63: Hovedkomponent 2 | G63: 0 | H63: =calcReinvestments(G63) -> 0 | I63: =IF(G63>0,((G63-(40-H63*G63))/G63),0) -> 0 | J63: =IF(H63=0,(L63*I63)/(1+Tilbagediskonteringsrente)^40,(((1+Produktivitetsindeks)^(G63*H63))*L63*I63)/(1+Tilbagediskonteringsrente)^40) -> 0 | K63: Afsnit X.X | L63: 0 | M63: Afsnit X.X | N63: 0 | O63: 0 | P63: Afsnit X.X
G64: Totaler | J64: =SUM(J32:J63) -> 57348.2475 | L64: =SUM(L32:L63) -> 250000 | N64: =SUM(N34:N63) -> 300 | O64: =SUM(O34:O63) -> 0
B66: Energibesparelser
F67: Varme | H67: El | I67: Dokumentation
F69: [kWh/m² pr. år] | G69: [KWh/år] | H69: [KWh/år]
E70: Standard | F70: 26.1 | G70: =1081*F70 -> 28214.1 | H70: =4.4*1081 -> 4756.4 | I70: Afsnit X.X
E71: Lavenergi | F71: 15.2 | G71: =1081*F71 -> 16431.2 | H71: =4.5*1081 -> 4864.5 | I71: Afsnit X.X
E72: Besparelse | F72: =F70-F71 -> 10.9 | G72: =G70-G71 -> 11782.9 | H72: =H70-H71 -> -108.1
B74: Forudsætninger og mellemregninger | L74: Dokumentation
C75: Totaløkonomiberegning
E76: Faktisk initial merinvestering kr. | K76: ='[7]Brugerinput og forudsætninger'!L64*-1 -> -250000 | L76: kr.
E77: Reinvesteringer i nutidskroner | K77: =[7]Beregninger!H49 -> -140328.5464 | L77: kr.
E78: Scrapværdi | K78: =-J64 -> -57348.2475 | L78: kr.
C80: Beboerøkonomi
E81: Hovedstol i kr. | K81: =K76*(1-K88) -> -245000 | L81: kr.
C83: Renteforudsætninger
E84: Nominel tilbagediskonteringsrente | K84: 0.0375
E85: Inflation | K85: 0.018
E86: Nominel prisstigning på energibesparende tiltag | K86: 0.008
E87: Beboerbetalingsprocent | K87: 0.031
E88: Beboerindskud | K88: 0.02
E89: Bidrag på lån | K89: 0.0027
C91: Elpriser
E92: Elpris inklusive afgifter men eksklusive faste bidrag og moms | K92: 1.8 | L92: kr / kWh | M92: Afsnit X.X
C93: Varmeforsyning og priser
D94: Før tiltag
E95: Varmekilde 1: | K95: Fjernvarme
E96: Varmepris | K96: 0.58 | L96: kr / kWh | M96: Afsnit X.X
D97: Efter tiltag
E98: Varmekilde 2: | K98: Fjernvarme
E99: Varmepris | K99: 0.58 | L99: kr / kWh | M99: Afsnit X.X

Sheet Eksempel 2
B2: Brugerberegning | J2: Bossident | L2: 1234578 12345678 1234567812
B4: Totaløkonomiberegning | N4: RESULTAT:
C5: Investeringer i nutidskroner | N5: =IF(AND(N13="Beregningen er totaløkonomisk",N24="Brugerøkonomien er positiv"),"Kravet om totaløkonomisk såvel som brugerøkonomisk rentabilitet er opfyldt, og projektet opfylder dermed de krævede økonomiske kriterier.","-") -> Kravet om totaløkonomisk såvel som brugerøkonomisk rentabilitet er opfyldt, og projektet opfylder dermed de krævede økonomiske kriterier.
E6: Initialinvesteringer | K6: =-'[3]Brugerinput og forudsætninger'!L64 -> -230000 | L6: kr.
E7: Reinvesteringer | K7: =[3]Beregninger!H49 -> -87705.34147 | L7: kr.
E8: Ændring i årlige vedligeholdelsesomkostninger, tilslutningsafgifer m.v. | K8: =[3]Beregninger!I49+[3]Beregninger!J49 -> -6941.297953 | L8: kr. | N8: =IF(AND(N13="Beregningen er IKKE totaløkonomisk",N24="Brugerøkonomien er negativ"),"Kravet om totaløkonomisk rentabilitet såvel som en positiv brugerøkonomi er ikke opfyldt.","-") -> -
E9: Scrapværdi | K9: =J64 -> 41480.54412 | L9: kr.
C10: Varmebesparelser | K10: =[3]Beregninger!O49 -> 140439.8208 | L10: kr.
C11: Elbesparelser | K11: =[3]Beregninger!S49 -> 172421.4865 | L11: kr.
C13: Total | K13: =SUM(K6:K11) -> 29695.212 | L13: kr. | N13: =IF(K13>0,"Beregningen er totaløkonomisk",IF(K13<0,"Beregningen er IKKE totaløkonomisk")) -> Beregningen er totaløkonomisk
B17: Brugerøkonomi
C18: Brugerøkonomi det første år
E19: Brugerbetaling | K19: =-[3]Beregninger!W9 -> 7738.58 | L19: kr.
E20: Varmebesparelser det første år | K20: =[3]Beregninger!O9 -> 4927.197007 | L20: kr.
E21: Elbesparelser det første år | K21: =[3]Beregninger!S9 -> 6107.02272 | L21: kr.
E22: Årlige andre besparelser - f.eks. tilslutningsafgifter m.v. | K22: =-O64 -> 0 | L22: kr.
C24: Total | K24: =SUM(K19:K22) -> 18772.79973 | L24: kr. | N24: =IF(K24<0,"Brugerøkonomien er negativ",IF(K24>0,"Brugerøkonomien er positiv")) -> Brugerøkonomien er positiv
B29: Investeringer og levetider - Forbedret bygning
G30: Levetid | H30: Antal reinvesteringer | I30: Afskrivningsfaktor efter 40 år | J30: Scrapværdi efter 40 år. I nutidskroner | K30: Dokumentation | L30: Initialinvestering - Merpris eller totalpris | M30: Dokumentation | N30: Årlige vedligeholdelsesomkostninger samt service og tilsyn | O30: Årlige udgifter der ikke indeholder service, tilsyn eller vedligehold. | P30: Dokumentation
F31: Kort beskrivelse | G31: år | L31: Nutidskroner | N31: Nutidskroner | O31: Nutidskroner
B32: Tiltag 1
C33: Titel | F33: Forbedret tæthed - ned til lavenergi krav
E34: Tættere bygning | G34: 60 | H34: =calcReinvestments(G34) -> 0 | I34: =IF(G34>0,((G34-(40-H34*G34))/G34),0) -> 0.3333333333 | J34: =IF(H34=0,(L34*I34)/(1+Tilbagediskonteringsrente)^40,(((1+Produktivitetsindeks)^(G34*H34))*L34*I34)/(1+Tilbagediskonteringsrente)^40) -> 9937.974596 | K34: Afsnit X.X | L34: 130000 | M34: Afsnit X.X | N34: 0 | O34: 0 | P34: Afsnit X.X
G35: 0 | H35: =calcReinvestments(G35) -> 0 | I35: =IF(G35>0,((G35-(40-H35*G35))/G35),0) -> 0 | J35: =IF(H35=0,(L35*I35)/(1+Tilbagediskonteringsrente)^40,(((1+Produktivitetsindeks)^(G35*H35))*L35*I35)/(1+Tilbagediskonteringsrente)^40) -> 0 | K35: Afsnit X.X | L35: 0 | M35: Afsnit X.X | N35: 0 | O35: 0 | P35: Afsnit X.X
B36: Tiltag 2
C37: Titel | F37: SEL-forbedring fra 1,5 til 1,2
E38: Bedre SEL-værdi | G38: 20 | H38: =calcReinvestments(G38) -> 2 | I38: =IF(G38>0,((G38-(40-H38*G38))/G38),0) -> 1 | J38: =IF(H38=0,(L38*I38)/(1+Tilbagediskonteringsrente)^40,(((1+Produktivitetsindeks)^(G38*H38))*L38*I38)/(1+Tilbagediskonteringsrente)^40) -> 31542.56953 | K38: Afsnit X.X | L38: 100000 | M38: Afsnit X.X | N38: 250 | O38: 0 | P38: Afsnit X.X
G39: 0 | H39: =calcReinvestments(G39) -> 0 | I39: =IF(G39>0,((G39-(40-H39*G39))/G39),0) -> 0 | J39: =IF(H39=0,(L39*I39)/(1+Tilbagediskonteringsrente)^40,(((1+Produktivitetsindeks)^(G39*H39))*L39*I39)/(1+Tilbagediskonteringsrente)^40) -> 0 | K39: Afsnit X.X | L39: 0 | M39: Afsnit X.X | N39: 0 | O39: 0 | P39: Afsnit X.X
B40: Tiltag 3
C41: Titel | F41: Intet tiltag
E42: Hovedkomponent 1 | G42: 0 | H42: =calcReinvestments(G42) -> 0 | I42: =IF(G42>0,((G42-(40-H42*G42))/G42),0) -> 0 | J42: =IF(H42=0,(L42*I42)/(1+Tilbagediskonteringsrente)^40,(((1+Produktivitetsindeks)^(G42*H42))*L42*I42)/(1+Tilbagediskonteringsrente)^40) -> 0 | K42: Afsnit X.X | L42: 0 | M42: Afsnit X.X | N42: 0 | O42: 0 | P42: Afsnit X.X
E43: Hovedkomponent 2 | G43: 0 | H43: =calcReinvestments(G43) -> 0 | I43: =IF(G43>0,((G43-(40-H43*G43))/G43),0) -> 0 | J43: =IF(H43=0,(L43*I43)/(1+Tilbagediskonteringsrente)^40,(((1+Produktivitetsindeks)^(G43*H43))*L43*I43)/(1+Tilbagediskonteringsrente)^40) -> 0 | K43: Afsnit X.X | L43: 0 | M43: Afsnit X.X | N43: 0 | O43: 0 | P43: Afsnit X.X
B44: Tiltag 4
C45: Titel | F45: Intet tiltag
E46: Hovedkomponent 1 | G46: 0 | H46: =calcReinvestments(G46) -> 0 | I46: =IF(G46>0,((G46-(40-H46*G46))/G46),0) -> 0 | J46: =IF(H46=0,(L46*I46)/(1+Tilbagediskonteringsrente)^40,(((1+Produktivitetsindeks)^(G46*H46))*L46*I46)/(1+Tilbagediskonteringsrente)^40) -> 0 | K46: Afsnit X.X | L46: 0 | M46: Afsnit X.X | N46: 0 | O46: 0 | P46: Afsnit X.X
E47: Hovedkomponent 2 | G47: 0 | H47: =calcReinvestments(G47) -> 0 | I47: =IF(G47>0,((G47-(40-H47*G47))/G47),0) -> 0 | J47: =IF(H47=0,(L47*I47)/(1+Tilbagediskonteringsrente)^40,(((1+Produktivitetsindeks)^(G47*H47))*L47*I47)/(1+Tilbagediskonteringsrente)^40) -> 0 | K47: Afsnit X.X | L47: 0 | M47: Afsnit X.X | N47: 0 | O47: 0 | P47: Afsnit X.X
B48: Tiltag 5
C49: Titel | F49: Intet tiltag
E50: Hovedkomponent 1 | G50: 0 | H50: =calcReinvestments(G50) -> 0 | I50: =IF(G50>0,((G50-(40-H50*G50))/G50),0) -> 0 | J50: =IF(H50=0,(L50*I50)/(1+Tilbagediskonteringsrente)^40,(((1+Produktivitetsindeks)^(G50*H50))*L50*I50)/(1+Tilbagediskonteringsrente)^40) -> 0 | K50: Afsnit X.X | L50: 0 | M50: Afsnit X.X | N50: 0 | O50: 0 | P50: Afsnit X.X
E51: Hovedkomponent 2 | G51: 0 | H51: =calcReinvestments(G51) -> 0 | I51: =IF(G51>0,((G51-(40-H51*G51))/G51),0) -> 0 | J51: =IF(H51=0,(L51*I51)/(1+Tilbagediskonteringsrente)^40,(((1+Produktivitetsindeks)^(G51*H51))*L51*I51)/(1+Tilbagediskonteringsrente)^40) -> 0 | K51: Afsnit X.X | L51: 0 | M51: Afsnit X.X | N51: 0 | O51: 0 | P51: Afsnit X.X
B52: Tiltag 6
C53: Titel | F53: Intet tiltag
E54: Hovedkomponent 1 | G54: 0 | H54: =calcReinvestments(G54) -> 0 | I54: =IF(G54>0,((G54-(40-H54*G54))/G54),0) -> 0 | J54: =IF(H54=0,(L54*I54)/(1+Tilbagediskonteringsrente)^40,(((1+Produktivitetsindeks)^(G54*H54))*L54*I54)/(1+Tilbagediskonteringsrente)^40) -> 0 | K54: Afsnit X.X | L54: 0 | M54: Afsnit X.X | N54: 0 | O54: 0 | P54: Afsnit X.X
E55: Hovedkomponent 2 | G55: 0 | H55: =calcReinvestments(G55) -> 0 | I55: =IF(G55>0,((G55-(40-H55*G55))/G55),0) -> 0 | J55: =IF(H55=0,(L55*I55)/(1+Tilbagediskonteringsrente)^40,(((1+Produktivitetsindeks)^(G55*H55))*L55*I55)/(1+Tilbagediskonteringsrente)^40) -> 0 | K55: Afsnit X.X | L55: 0 | M55: Afsnit X.X | N55: 0 | O55: 0 | P55: Afsnit X.X
B56: Tiltag 7
C57: Titel | F57: Intet tiltag
E58: Hovedkomponent 1 | G58: 0 | H58: =calcReinvestments(G58) -> 0 | I58: =IF(G58>0,((G58-(40-H58*G58))/G58),0) -> 0 | J58: =IF(H58=0,(L58*I58)/(1+Tilbagediskonteringsrente)^40,(((1+Produktivitetsindeks)^(G58*H58))*L58*I58)/(1+Tilbagediskonteringsrente)^40) -> 0 | K58: Afsnit X.X | L58: 0 | M58: Afsnit X.X | N58: 0 | O58: 0 | P58: Afsnit X.X
E59: Hovedkomponent 2 | G59: 0 | H59: =calcReinvestments(G59) -> 0 | I59: =IF(G59>0,((G59-(40-H59*G59))/G59),0) -> 0 | J59: =IF(H59=0,(L59*I59)/(1+Tilbagediskonteringsrente)^40,(((1+Produktivitetsindeks)^(G59*H59))*L59*I59)/(1+Tilbagediskonteringsrente)^40) -> 0 | K59: Afsnit X.X | L59: 0 | M59: Afsnit X.X | N59: 0 | O59: 0 | P59: Afsnit X.X
B60: Tiltag 8
C61: Titel | F61: Intet tiltag
E62: Hovedkomponent 1 | G62: 0 | H62: =calcReinvestments(G62) -> 0 | I62: =IF(G62>0,((G62-(40-H62*G62))/G62),0) -> 0 | J62: =IF(H62=0,(L62*I62)/(1+Tilbagediskonteringsrente)^40,(((1+Produktivitetsindeks)^(G62*H62))*L62*I62)/(1+Tilbagediskonteringsrente)^40) -> 0 | K62: Afsnit X.X | L62: 0 | M62: Afsnit X.X | N62: 0 | O62: 0 | P62: Afsnit X.X
E63: Hovedkomponent 2 | G63: 0 | H63: =calcReinvestments(G63) -> 0 | I63: =IF(G63>0,((G63-(40-H63*G63))/G63),0) -> 0 | J63: =IF(H63=0,(L63*I63)/(1+Tilbagediskonteringsrente)^40,(((1+Produktivitetsindeks)^(G63*H63))*L63*I63)/(1+Tilbagediskonteringsrente)^40) -> 0 | K63: Afsnit X.X | L63: 0 | M63: Afsnit X.X | N63: 0 | O63: 0 | P63: Afsnit X.X
G64: Totaler | J64: =SUM(J32:J63) -> 41480.54412 | L64: =SUM(L32:L63) -> 230000 | N64: =SUM(N34:N63) -> 250 | O64: =SUM(O34:O63) -> 0
B66: Energibesparelser
F67: Varme | H67: El | I67: Dokumentation
F69: [kWh/m² pr. år] | G69: [KWh/år] | H69: [KWh/år]
E70: Standard | F70: 25.8 | G70: =4166*F70 -> 107482.8 | H70: =4.3*4166 -> 17913.8 | I70: Afsnit X.X
E71: Lavenergi | F71: 23.8 | G71: =4166*F71 -> 99150.8 | H71: =3.5*4166 -> 14581 | I71: Afsnit X.X
E72: Besparelse | F72: =F70-F71 -> 2 | G72: =G70-G71 -> 8332 | H72: =H70-H71 -> 3332.8
B74: Forudsætninger og mellemregninger | L74: Dokumentation
C75: Totaløkonomiberegning
E76: Faktisk initial merinvestering kr. | K76: ='[3]Brugerinput og forudsætninger'!L64*-1 -> -230000 | L76: kr.
E77: Reinvesteringer i nutidskroner | K77: =[3]Beregninger!H49 -> -87705.34147 | L77: kr.
E78: Scrapværdi | K78: =-J64 -> -41480.54412 | L78: kr.
C80: Beboerøkonomi
E81: Hovedstol i kr. | K81: =K76*(1-K88) -> -225400 | L81: kr.
C83: Renteforudsætninger
E84: Nominel tilbagediskonteringsrente | K84: 0.0375
E85: Inflation | K85: 0.018
E86: Nominel prisstigning på energibesparende tiltag | K86: 0.008
E87: Beboerbetalingsprocent | K87: 0.031
E88: Beboerindskud | K88: 0.02
E89: Bidrag på lån | K89: 0.0027
C91: Elpriser
E92: Elpris inklusive afgifter men eksklusive faste bidrag og moms | K92: 1.8 | L92: kr / kWh | M92: Afsnit X.X
C93: Varmeforsyning og priser
D94: Før tiltag
E95: Varmekilde 1: | K95: Fjernvarme
E96: Varmepris | K96: 0.58 | L96: kr / kWh | M96: Afsnit X.X
D97: Efter tiltag
E98: Varmekilde 2: | K98: Fjernvarme
E99: Varmepris | K99: 0.58 | L99: kr / kWh | M99: Afsnit X.X

Sheet Eksempel 3
B2: Brugerberegning | J2: Bossident | L2: 1234578 12345678 1234567812
B4: Totaløkonomiberegning | N4: RESULTAT:
C5: Investeringer i nutidskroner | N5: =IF(AND(N13="Beregningen er totaløkonomisk",N24="Brugerøkonomien er positiv"),"Kravet om totaløkonomisk såvel som brugerøkonomisk rentabilitet er opfyldt, og projektet opfylder dermed de krævede økonomiske kriterier.","-") -> Kravet om totaløkonomisk såvel som brugerøkonomisk rentabilitet er opfyldt, og projektet opfylder dermed de krævede økonomiske kriterier.
E6: Initialinvesteringer | K6: =-'[9]Brugerinput og forudsætninger'!L64 -> -305000 | L6: kr.
E7: Reinvesteringer | K7: =[9]Beregninger!H49 -> -163983.1811 | L7: kr.
E8: Ændring i årlige vedligeholdelsesomkostninger, tilslutningsafgifer m.v. | K8: =[9]Beregninger!I49+[9]Beregninger!J49 -> 312358.4079 | L8: kr. | N8: =IF(AND(N13="Beregningen er IKKE totaløkonomisk",N24="Brugerøkonomien er negativ"),"Kravet om totaløkonomisk rentabilitet såvel som en positiv brugerøkonomi er ikke opfyldt.","-") -> -
E9: Scrapværdi | K9: =J64 -> 64270.50418 | L9: kr.
C10: Varmebesparelser | K10: =[9]Beregninger!O49 -> 1110944.382 | L10: kr.
C11: Elbesparelser | K11: =[9]Beregninger!S49 -> -585119.723 | L11: kr.
C13: Total | K13: =SUM(K6:K11) -> 433470.3895 | L13: kr. | N13: =IF(K13>0,"Beregningen er totaløkonomisk",IF(K13<0,"Beregningen er IKKE totaløkonomisk")) -> Beregningen er totaløkonomisk
B17: Brugerøkonomi
C18: Brugerøkonomi det første år
E19: Brugerbetaling | K19: =-[9]Beregninger!W9 -> 10262.03 | L19: kr.
E20: Varmebesparelser det første år | K20: =[9]Beregninger!O9 -> 38976.4228 | L20: kr.
E21: Elbesparelser det første år | K21: =[9]Beregninger!S9 -> -20724.444 | L21: kr.
E22: Årlige andre besparelser - f.eks. tilslutningsafgifter m.v. | K22: =-O64 -> 13000 | L22: kr.
C24: Total | K24: =SUM(K19:K22) -> 41514.0088 | L24: kr. | N24: =IF(K24<0,"Brugerøkonomien er negativ",IF(K24>0,"Brugerøkonomien er positiv")) -> Brugerøkonomien er positiv
B29: Investeringer og levetider - Forbedret bygning
G30: Levetid | H30: Antal reinvesteringer | I30: Afskrivningsfaktor efter 40 år | J30: Scrapværdi efter 40 år. I nutidskroner | K30: Dokumentation | L30: Initialinvestering - Merpris eller totalpris | M30: Dokumentation | N30: Årlige vedligeholdelsesomkostninger samt service og tilsyn | O30: Årlige udgifter der ikke indeholder service, tilsyn eller vedligehold. | P30: Dokumentation
F31: Kort beskrivelse | G31: år | L31: Nutidskroner | N31: Nutidskroner | O31: Nutidskroner
B32: Tiltag 1
C33: Titel | F33: Jordvarmeanlæg
E34: Jordvarmeanlæg | G34: 50 | H34: =calcReinvestments(G34) -> 0 | I34: =IF(G34>0,((G34-(40-H34*G34))/G34),0) -> 0.2 | J34: =IF(H34=0,(L34*I34)/(1+Tilbagediskonteringsrente)^40,(((1+Produktivitetsindeks)^(G34*H34))*L34*I34)/(1+Tilbagediskonteringsrente)^40) -> 8256.16351 | K34: Afsnit X.X | L34: 180000 | M34: Afsnit X.X | N34: 0 | O34: 0 | P34: Afsnit X.X
E35: Varmepumpe | G35: 20 | H35: =calcReinvestments(G35) -> 2 | I35: =IF(G35>0,((G35-(40-H35*G35))/G35),0) -> 1 | J35: =IF(H35=0,(L35*I35)/(1+Tilbagediskonteringsrente)^40,(((1+Produktivitetsindeks)^(G35*H35))*L35*I35)/(1+Tilbagediskonteringsrente)^40) -> 78856.42382 | K35: Afsnit X.X | L35: 250000 | M35: Afsnit X.X | N35: 1500 | O35: 0 | P35: Afsnit X.X
B36: Tiltag 2
C37: Titel | F37: Oprindelig fjernvarmeinstallation
E38: Fjernvarmeinstallation | G38: 20 | H38: =calcReinvestments(G38) -> 2 | I38: =IF(G38>0,((G38-(40-H38*G38))/G38),0) -> 1 | J38: =IF(H38=0,(L38*I38)/(1+Tilbagediskonteringsrente)^40,(((1+Produktivitetsindeks)^(G38*H38))*L38*I38)/(1+Tilbagediskonteringsrente)^40) -> -26811.1841 | K38: Afsnit X.X | L38: -85000 | M38: Afsnit X.X | N38: 0 | O38: 0 | P38: Afsnit X.X
E39: Tilslutningsafgift | G39: 0 | H39: =calcReinvestments(G39) -> 0 | I39: =IF(G39>0,((G39-(40-H39*G39))/G39),0) -> 0 | J39: =IF(H39=0,(L39*I39)/(1+Tilbagediskonteringsrente)^40,(((1+Produktivitetsindeks)^(G39*H39))*L39*I39)/(1+Tilbagediskonteringsrente)^40) -> 0 | K39: Afsnit X.X | L39: -70000 | M39: Afsnit X.X | N39: 0 | O39: -13000 | P39: Afsnit X.X
B40: Tiltag 3
C41: Titel | F41: Forøgelse af solcelleanlæg med 20 m²
E42: Paneler | G42: 25 | H42: =calcReinvestments(G42) -> 1 | I42: =IF(G42>0,((G42-(40-H42*G42))/G42),0) -> 0.4 | J42: =IF(H42=0,(L42*I42)/(1+Tilbagediskonteringsrente)^40,(((1+Produktivitetsindeks)^(G42*H42))*L42*I42)/(1+Tilbagediskonteringsrente)^40) -> 3022.823869 | K42: Afsnit X.X | L42: 27000 | M42: Afsnit X.X | N42: 250 | O42: 0 | P42: Afsnit X.X
E43: Inverter | G43: 10 | H43: =calcReinvestments(G43) -> 4 | I43: =IF(G43>0,((G43-(40-H43*G43))/G43),0) -> 1 | J43: =IF(H43=0,(L43*I43)/(1+Tilbagediskonteringsrente)^40,(((1+Produktivitetsindeks)^(G43*H43))*L43*I43)/(1+Tilbagediskonteringsrente)^40) -> 946.2770858 | K43: Afsnit X.X | L43: 3000 | M43: Afsnit X.X | N43: 0 | O43: 0 | P43: Afsnit X.X
B44: Tiltag 4
C45: Titel | F45: Intet tiltag
E46: Hovedkomponent 1 | G46: 0 | H46: =calcReinvestments(G46) -> 0 | I46: =IF(G46>0,((G46-(40-H46*G46))/G46),0) -> 0 | J46: =IF(H46=0,(L46*I46)/(1+Tilbagediskonteringsrente)^40,(((1+Produktivitetsindeks)^(G46*H46))*L46*I46)/(1+Tilbagediskonteringsrente)^40) -> 0 | K46: Afsnit X.X | L46: 0 | M46: Afsnit X.X | N46: 0 | O46: 0 | P46: Afsnit X.X
E47: Hovedkomponent 2 | G47: 0 | H47: =calcReinvestments(G47) -> 0 | I47: =IF(G47>0,((G47-(40-H47*G47))/G47),0) -> 0 | J47: =IF(H47=0,(L47*I47)/(1+Tilbagediskonteringsrente)^40,(((1+Produktivitetsindeks)^(G47*H47))*L47*I47)/(1+Tilbagediskonteringsrente)^40) -> 0 | K47: Afsnit X.X | L47: 0 | M47: Afsnit X.X | N47: 0 | O47: 0 | P47: Afsnit X.X
B48: Tiltag 5
C49: Titel | F49: Intet tiltag
E50: Hovedkomponent 1 | G50: 0 | H50: =calcReinvestments(G50) -> 0 | I50: =IF(G50>0,((G50-(40-H50*G50))/G50),0) -> 0 | J50: =IF(H50=0,(L50*I50)/(1+Tilbagediskonteringsrente)^40,(((1+Produktivitetsindeks)^(G50*H50))*L50*I50)/(1+Tilbagediskonteringsrente)^40) -> 0 | K50: Afsnit X.X | L50: 0 | M50: Afsnit X.X | N50: 0 | O50: 0 | P50: Afsnit X.X
E51: Hovedkomponent 2 | G51: 0 | H51: =calcReinvestments(G51) -> 0 | I51: =IF(G51>0,((G51-(40-H51*G51))/G51),0) -> 0 | J51: =IF(H51=0,(L51*I51)/(1+Tilbagediskonteringsrente)^40,(((1+Produktivitetsindeks)^(G51*H51))*L51*I51)/(1+Tilbagediskonteringsrente)^40) -> 0 | K51: Afsnit X.X | L51: 0 | M51: Afsnit X.X | N51: 0 | O51: 0 | P51: Afsnit X.X
B52: Tiltag 6
C53: Titel | F53: Intet tiltag
E54: Hovedkomponent 1 | G54: 0 | H54: =calcReinvestments(G54) -> 0 | I54: =IF(G54>0,((G54-(40-H54*G54))/G54),0) -> 0 | J54: =IF(H54=0,(L54*I54)/(1+Tilbagediskonteringsrente)^40,(((1+Produktivitetsindeks)^(G54*H54))*L54*I54)/(1+Tilbagediskonteringsrente)^40) -> 0 | K54: Afsnit X.X | L54: 0 | M54: Afsnit X.X | N54: 0 | O54: 0 | P54: Afsnit X.X
E55: Hovedkomponent 2 | G55: 0 | H55: =calcReinvestments(G55) -> 0 | I55: =IF(G55>0,((G55-(40-H55*G55))/G55),0) -> 0 | J55: =IF(H55=0,(L55*I55)/(1+Tilbagediskonteringsrente)^40,(((1+Produktivitetsindeks)^(G55*H55))*L55*I55)/(1+Tilbagediskonteringsrente)^40) -> 0 | K55: Afsnit X.X | L55: 0 | M55: Afsnit X.X | N55: 0 | O55: 0 | P55: Afsnit X.X
B56: Tiltag 7
C57: Titel | F57: Intet tiltag
E58: Hovedkomponent 1 | G58: 0 | H58: =calcReinvestments(G58) -> 0 | I58: =IF(G58>0,((G58-(40-H58*G58))/G58),0) -> 0 | J58: =IF(H58=0,(L58*I58)/(1+Tilbagediskonteringsrente)^40,(((1+Produktivitetsindeks)^(G58*H58))*L58*I58)/(1+Tilbagediskonteringsrente)^40) -> 0 | K58: Afsnit X.X | L58: 0 | M58: Afsnit X.X | N58: 0 | O58: 0 | P58: Afsnit X.X
E59: Hovedkomponent 2 | G59: 0 | H59: =calcReinvestments(G59) -> 0 | I59: =IF(G59>0,((G59-(40-H59*G59))/G59),0) -> 0 | J59: =IF(H59=0,(L59*I59)/(1+Tilbagediskonteringsrente)^40,(((1+Produktivitetsindeks)^(G59*H59))*L59*I59)/(1+Tilbagediskonteringsrente)^40) -> 0 | K59: Afsnit X.X | L59: 0 | M59: Afsnit X.X | N59: 0 | O59: 0 | P59: Afsnit X.X
B60: Tiltag 8
C61: Titel | F61: Intet tiltag
E62: Hovedkomponent 1 | G62: 0 | H62: =calcReinvestments(G62) -> 0 | I62: =IF(G62>0,((G62-(40-H62*G62))/G62),0) -> 0 | J62: =IF(H62=0,(L62*I62)/(1+Tilbagediskonteringsrente)^40,(((1+Produktivitetsindeks)^(G62*H62))*L62*I62)/(1+Tilbagediskonteringsrente)^40) -> 0 | K62: Afsnit X.X | L62: 0 | M62: Afsnit X.X | N62: 0 | O62: 0 | P62: Afsnit X.X
E63: Hovedkomponent 2 | G63: 0 | H63: =calcReinvestments(G63) -> 0 | I63: =IF(G63>0,((G63-(40-H63*G63))/G63),0) -> 0 | J63: =IF(H63=0,(L63*I63)/(1+Tilbagediskonteringsrente)^40,(((1+Produktivitetsindeks)^(G63*H63))*L63*I63)/(1+Tilbagediskonteringsrente)^40) -> 0 | K63: Afsnit X.X | L63: 0 | M63: Afsnit X.X | N63: 0 | O63: 0 | P63: Afsnit X.X
G64: Totaler | J64: =SUM(J32:J63) -> 64270.50418 | L64: =SUM(L32:L63) -> 305000 | N64: =SUM(N34:N63) -> 1750 | O64: =SUM(O34:O63) -> -13000
B66: Energibesparelser
F67: Varme | H67: El | I67: Dokumentation
F69: [kWh/m² pr. år] | G69: [KWh/år] | H69: [KWh/år]
E70: Standard | F70: 33.8 | G70: =1950*F70 -> 65910 | H70: =1950*0.6 -> 1170 | I70: Afsnit X.X
E71: Lavenergi | F71: 0 | G71: =4166*F71 -> 0 | H71: =1950*6.4 -> 12480 | I71: Afsnit X.X
E72: Besparelse | F72: =F70-F71 -> 33.8 | G72: =G70-G71 -> 65910 | H72: =H70-H71 -> -11310
B74: Forudsætninger og mellemregninger | L74: Dokumentation
C75: Totaløkonomiberegning
E76: Faktisk initial merinvestering kr. | K76: ='[9]Brugerinput og forudsætninger'!L64*-1 -> -305000 | L76: kr.
E77: Reinvesteringer i nutidskroner | K77: =[9]Beregninger!H49 -> -163983.1811 | L77: kr.
E78: Scrapværdi | K78: =-J64 -> -64270.50418 | L78: kr.
C80: Beboerøkonomi
E81: Hovedstol i kr. | K81: =K76*(1-K88) -> -298900 | L81: kr.
C83: Renteforudsætninger
E84: Nominel tilbagediskonteringsrente | K84: 0.0375
E85: Inflation | K85: 0.018
E86: Nominel prisstigning på energibesparende tiltag | K86: 0.008
E87: Beboerbetalingsprocent | K87: 0.031
E88: Beboerindskud | K88: 0.02
E89: Bidrag på lån | K89: 0.0027
C91: Elpriser
E92: Elpris inklusive afgifter men eksklusive faste bidrag og moms | K92: 1.8 | L92: kr / kWh | M92: Afsnit X.X
C93: Varmeforsyning og priser
D94: Før tiltag
E95: Varmekilde 1: | K95: Fjernvarme
E96: Varmepris | K96: 0.58 | L96: kr / kWh | M96: Afsnit X.X
D97: Efter tiltag
E98: Varmekilde 2: | K98: El
E99: Varmepris | K99: 0.58 | L99: kr / kWh | M99: Afsnit X.X

Sheet Eksempel 4
B2: Brugerberegning | J2: Bossident | L2: 1234578 12345678 1234567812
B4: Totaløkonomiberegning | N4: RESULTAT:
C5: Investeringer i nutidskroner | N5: =IF(AND(N13="Beregningen er totaløkonomisk rentabel",N24="Brugerøkonomien er positiv"),"Kravet om totaløkonomisk såvel som brugerøkonomisk rentabilitet er opfyldt, og projektet opfylder dermed de krævede økonomiske kriterier.","-") -> Kravet om totaløkonomisk såvel som brugerøkonomisk rentabilitet er opfyldt, og projektet opfylder dermed de krævede økonomiske kriterier.
E6: Initialinvesteringer | K6: =-'[11]Brugerinput og forudsætninger'!L64 -> -40000 | L6: kr.
E7: Reinvesteringer | K7: =[11]Beregninger!H49 -> -25692.49018 | L7: kr.
E8: Ændring i årlige vedligeholdelsesomkostninger, tilslutningsafgifer m.v. | K8: =[11]Beregninger!I49+[11]Beregninger!J49 -> -4164.778772 | L8: kr. | N8: =IF(AND(N13="Beregningen er IKKE totaløkonomisk rentabel",N24="Brugerøkonomien er negativ"),"Kravet om totaløkonomisk rentabilitet såvel som en positiv brugerøkonomi er ikke opfyldt.","-") -> -
E9: Scrapværdi | K9: =J64 -> 5292.134606 | L9: kr.
C10: Varmebesparelser | K10: =[11]Beregninger!O49 -> -29581.35927 | L10: kr.
C11: Elbesparelser | K11: =[11]Beregninger!S49 -> 232030.235 | L11: kr.
C13: Total | K13: =SUM(K6:K11) -> 137883.7413 | L13: kr. | N13: =IF(K13>0,"Beregningen er totaløkonomisk rentabel",IF(K13<0,"Beregningen er IKKE totaløkonomisk rentabel")) -> Beregningen er totaløkonomisk rentabel
B17: Brugerøkonomi
C18: Brugerøkonomi det første år
E19: Brugerbetaling | K19: =-[11]Beregninger!W9 -> -1345.84 | L19: kr.
E20: Varmebesparelser det første år | K20: =[11]Beregninger!O9 -> -1037.833743 | L20: kr.
E21: Elbesparelser det første år | K21: =[11]Beregninger!S9 -> 8218.314 | L21: kr.
E22: Årlige andre besparelser - f.eks. tilslutningsafgifter m.v. | K22: =-O64 -> 0 | L22: kr.
C24: Total | K24: =SUM(K19:K22) -> 5834.640257 | L24: kr. | N24: =IF(K24<0,"Brugerøkonomien er negativ",IF(K24>0,"Brugerøkonomien er positiv")) -> Brugerøkonomien er positiv
B29: Investeringer og levetider - Forbedret bygning
G30: Levetid | H30: Antal reinvesteringer | I30: Afskrivningsfaktor efter 40 år | J30: Scrapværdi efter 40 år. I nutidskroner | K30: Dokumentation | L30: Initialinvestering - Merpris eller totalpris | M30: Dokumentation | N30: Årlige vedligeholdelsesomkostninger samt service og tilsyn | O30: Årlige udgifter der ikke indeholder service, tilsyn eller vedligehold. | P30: Dokumentation
F31: Kort beskrivelse | G31: år | L31: Nutidskroner | N31: Nutidskroner | O31: Nutidskroner
B32: Tiltag 1
C33: Titel | F33: Oprindelig solcelleanlæg - 35 m2
E34: Paneler | G34: 25 | H34: =calcReinvestments(G34) -> 1 | I34: =IF(G34>0,((G34-(40-H34*G34))/G34),0) -> 0.4 | J34: =IF(H34=0,(L34*I34)/(1+Tilbagediskonteringsrente)^40,(((1+Produktivitetsindeks)^(G34*H34))*L34*I34)/(1+Tilbagediskonteringsrente)^40) -> -7053.255694 | K34: Afsnit X.X | L34: -63000 | M34: Afsnit X.X | N34: -250 | O34: 0 | P34: Afsnit X.X
E35: Inverter | G35: 10 | H35: =calcReinvestments(G35) -> 4 | I35: =IF(G35>0,((G35-(40-H35*G35))/G35),0) -> 1 | J35: =IF(H35=0,(L35*I35)/(1+Tilbagediskonteringsrente)^40,(((1+Produktivitetsindeks)^(G35*H35))*L35*I35)/(1+Tilbagediskonteringsrente)^40) -> -2207.979867 | K35: Afsnit X.X | L35: -7000 | M35: Afsnit X.X | N35: 0 | O35: 0 | P35: Afsnit X.X
B36: Tiltag 2
C37: Titel | F37: Udvidet solcelleanlæg - 55 m2
E38: Paneler | G38: 25 | H38: =calcReinvestments(G38) -> 1 | I38: =IF(G38>0,((G38-(40-H38*G38))/G38),0) -> 0.4 | J38: =IF(H38=0,(L38*I38)/(1+Tilbagediskonteringsrente)^40,(((1+Produktivitetsindeks)^(G38*H38))*L38*I38)/(1+Tilbagediskonteringsrente)^40) -> 11083.68752 | K38: Afsnit X.X | L38: 99000 | M38: Afsnit X.X | N38: 400 | O38: 0 | P38: Afsnit X.X
E39: Inverter | G39: 10 | H39: =calcReinvestments(G39) -> 4 | I39: =IF(G39>0,((G39-(40-H39*G39))/G39),0) -> 1 | J39: =IF(H39=0,(L39*I39)/(1+Tilbagediskonteringsrente)^40,(((1+Produktivitetsindeks)^(G39*H39))*L39*I39)/(1+Tilbagediskonteringsrente)^40) -> 3469.682648 | K39: Afsnit X.X | L39: 11000 | M39: Afsnit X.X | N39: 0 | O39: 0 | P39: Afsnit X.X
B40: Tiltag 3
C41: Titel | F41: Intet tiltag
E42: Hovedkomponent 1 | G42: 0 | H42: =calcReinvestments(G42) -> 0 | I42: =IF(G42>0,((G42-(40-H42*G42))/G42),0) -> 0 | J42: =IF(H42=0,(L42*I42)/(1+Tilbagediskonteringsrente)^40,(((1+Produktivitetsindeks)^(G42*H42))*L42*I42)/(1+Tilbagediskonteringsrente)^40) -> 0 | K42: Afsnit X.X | L42: 0 | M42: Afsnit X.X | N42: 0 | O42: 0 | P42: Afsnit X.X
E43: Hovedkomponent 2 | G43: 0 | H43: =calcReinvestments(G43) -> 0 | I43: =IF(G43>0,((G43-(40-H43*G43))/G43),0) -> 0 | J43: =IF(H43=0,(L43*I43)/(1+Tilbagediskonteringsrente)^40,(((1+Produktivitetsindeks)^(G43*H43))*L43*I43)/(1+Tilbagediskonteringsrente)^40) -> 0 | K43: Afsnit X.X | L43: 0 | M43: Afsnit X.X | N43: 0 | O43: 0 | P43: Afsnit X.X
B44: Tiltag 4
C45: Titel | F45: Intet tiltag
E46: Hovedkomponent 1 | G46: 0 | H46: =calcReinvestments(G46) -> 0 | I46: =IF(G46>0,((G46-(40-H46*G46))/G46),0) -> 0 | J46: =IF(H46=0,(L46*I46)/(1+Tilbagediskonteringsrente)^40,(((1+Produktivitetsindeks)^(G46*H46))*L46*I46)/(1+Tilbagediskonteringsrente)^40) -> 0 | K46: Afsnit X.X | L46: 0 | M46: Afsnit X.X | N46: 0 | O46: 0 | P46: Afsnit X.X
E47: Hovedkomponent 2 | G47: 0 | H47: =calcReinvestments(G47) -> 0 | I47: =IF(G47>0,((G47-(40-H47*G47))/G47),0) -> 0 | J47: =IF(H47=0,(L47*I47)/(1+Tilbagediskonteringsrente)^40,(((1+Produktivitetsindeks)^(G47*H47))*L47*I47)/(1+Tilbagediskonteringsrente)^40) -> 0 | K47: Afsnit X.X | L47: 0 | M47: Afsnit X.X | N47: 0 | O47: 0 | P47: Afsnit X.X
B48: Tiltag 5
C49: Titel | F49: Intet tiltag
E50: Hovedkomponent 1 | G50: 0 | H50: =calcReinvestments(G50) -> 0 | I50: =IF(G50>0,((G50-(40-H50*G50))/G50),0) -> 0 | J50: =IF(H50=0,(L50*I50)/(1+Tilbagediskonteringsrente)^40,(((1+Produktivitetsindeks)^(G50*H50))*L50*I50)/(1+Tilbagediskonteringsrente)^40) -> 0 | K50: Afsnit X.X | L50: 0 | M50: Afsnit X.X | N50: 0 | O50: 0 | P50: Afsnit X.X
E51: Hovedkomponent 2 | G51: 0 | H51: =calcReinvestments(G51) -> 0 | I51: =IF(G51>0,((G51-(40-H51*G51))/G51),0) -> 0 | J51: =IF(H51=0,(L51*I51)/(1+Tilbagediskonteringsrente)^40,(((1+Produktivitetsindeks)^(G51*H51))*L51*I51)/(1+Tilbagediskonteringsrente)^40) -> 0 | K51: Afsnit X.X | L51: 0 | M51: Afsnit X.X | N51: 0 | O51: 0 | P51: Afsnit X.X
B52: Tiltag 6
C53: Titel | F53: Intet tiltag
E54: Hovedkomponent 1 | G54: 0 | H54: =calcReinvestments(G54) -> 0 | I54: =IF(G54>0,((G54-(40-H54*G54))/G54),0) -> 0 | J54: =IF(H54=0,(L54*I54)/(1+Tilbagediskonteringsrente)^40,(((1+Produktivitetsindeks)^(G54*H54))*L54*I54)/(1+Tilbagediskonteringsrente)^40) -> 0 | K54: Afsnit X.X | L54: 0 | M54: Afsnit X.X | N54: 0 | O54: 0 | P54: Afsnit X.X
E55: Hovedkomponent 2 | G55: 0 | H55: =calcReinvestments(G55) -> 0 | I55: =IF(G55>0,((G55-(40-H55*G55))/G55),0) -> 0 | J55: =IF(H55=0,(L55*I55)/(1+Tilbagediskonteringsrente)^40,(((1+Produktivitetsindeks)^(G55*H55))*L55*I55)/(1+Tilbagediskonteringsrente)^40) -> 0 | K55: Afsnit X.X | L55: 0 | M55: Afsnit X.X | N55: 0 | O55: 0 | P55: Afsnit X.X
B56: Tiltag 7
C57: Titel | F57: Intet tiltag
E58: Hovedkomponent 1 | G58: 0 | H58: =calcReinvestments(G58) -> 0 | I58: =IF(G58>0,((G58-(40-H58*G58))/G58),0) -> 0 | J58: =IF(H58=0,(L58*I58)/(1+Tilbagediskonteringsrente)^40,(((1+Produktivitetsindeks)^(G58*H58))*L58*I58)/(1+Tilbagediskonteringsrente)^40) -> 0 | K58: Afsnit X.X | L58: 0 | M58: Afsnit X.X | N58: 0 | O58: 0 | P58: Afsnit X.X
E59: Hovedkomponent 2 | G59: 0 | H59: =calcReinvestments(G59) -> 0 | I59: =IF(G59>0,((G59-(40-H59*G59))/G59),0) -> 0 | J59: =IF(H59=0,(L59*I59)/(1+Tilbagediskonteringsrente)^40,(((1+Produktivitetsindeks)^(G59*H59))*L59*I59)/(1+Tilbagediskonteringsrente)^40) -> 0 | K59: Afsnit X.X | L59: 0 | M59: Afsnit X.X | N59: 0 | O59: 0 | P59: Afsnit X.X
B60: Tiltag 8
C61: Titel | F61: Intet tiltag
E62: Hovedkomponent 1 | G62: 0 | H62: =calcReinvestments(G62) -> 0 | I62: =IF(G62>0,((G62-(40-H62*G62))/G62),0) -> 0 | J62: =IF(H62=0,(L62*I62)/(1+Tilbagediskonteringsrente)^40,(((1+Produktivitetsindeks)^(G62*H62))*L62*I62)/(1+Tilbagediskonteringsrente)^40) -> 0 | K62: Afsnit X.X | L62: 0 | M62: Afsnit X.X | N62: 0 | O62: 0 | P62: Afsnit X.X
E63: Hovedkomponent 2 | G63: 0 | H63: =calcReinvestments(G63) -> 0 | I63: =IF(G63>0,((G63-(40-H63*G63))/G63),0) -> 0 | J63: =IF(H63=0,(L63*I63)/(1+Tilbagediskonteringsrente)^40,(((1+Produktivitetsindeks)^(G63*H63))*L63*I63)/(1+Tilbagediskonteringsrente)^40) -> 0 | K63: Afsnit X.X | L63: 0 | M63: Afsnit X.X | N63: 0 | O63: 0 | P63: Afsnit X.X
G64: Totaler | J64: =SUM(J32:J63) -> 5292.134606 | L64: =SUM(L32:L63) -> 40000 | N64: =SUM(N34:N63) -> 150 | O64: =SUM(O34:O63) -> 0
B66: Energibesparelser
F67: Varme | H67: El | I67: Dokumentation
F69: [kWh/m² pr. år] | G69: [KWh/år] | H69: [KWh/år]
E70: Standard | F70: 33.8 | G70: =1950*F70 -> 65910 | H70: =1950*0.6 -> 1170 | I70: Afsnit X.X
E71: Lavenergi | F71: 34.7 | G71: =1950*F71 -> 67665 | H71: =1950*(-1.7) -> -3315 | I71: Afsnit X.X
E72: Besparelse | F72: =F70-F71 -> -0.9 | G72: =G70-G71 -> -1755 | H72: =H70-H71 -> 4485
B74: Forudsætninger og mellemregninger | L74: Dokumentation
C75: Totaløkonomiberegning
E76: Faktisk initial merinvestering kr. | K76: ='[11]Brugerinput og forudsætninger'!L64 -> 40000 | L76: kr.
E77: Reinvesteringer i nutidskroner | K77: =[11]Beregninger!H49 -> -25692.49018 | L77: kr.
E78: Scrapværdi | K78: =-J64 -> -5292.134606 | L78: kr.
C80: Beboerøkonomi
E81: Hovedstol i kr. | K81: =K76*(1-K88) -> 39200 | L81: kr.
C83: Renteforudsætninger
E84: Nominel tilbagediskonteringsrente | K84: 0.0375
E85: Inflation | K85: 0.018
E86: Nominel prisstigning på energibesparende tiltag | K86: 0.008
E87: Beboerbetalingsprocent | K87: 0.031
E88: Beboerindskud | K88: 0.02
E89: Bidrag på lån | K89: 0.0027
C91: Elpriser
E92: Elpris inklusive afgifter men eksklusive faste bidrag og moms | K92: 1.8 | L92: kr / kWh | M92: Afsnit X.X
C93: Varmeforsyning og priser
D94: Før tiltag
E95: Varmekilde 1: | K95: Fjernvarme
E96: Varmepris | K96: 0.58 | L96: kr / kWh | M96: Afsnit X.X
D97: Efter tiltag
E98: Varmekilde 2: | K98: Fjernvarme
E99: Varmepris | K99: 0.58 | L99: kr / kWh | M99: Afsnit X.X
